{"text_format":"1","workbook":"xlsx","n_sheets":23,"sheets":["注意事項等","注意事項等 ","質疑等連絡票","計画書","計画通知書","２面","その他の申請者","３面","4面①（非住宅） ","4面② (戸建・共同住宅・複合建築)","５面(共同住宅・複合建築物)","4面集約版","5面集約版（共同住宅等）","puldwn","fmex_agg","fmex_d2d","別紙（住戸の仕様基準を用いる場合","設内（標準）","設内（モデル）","設内（住宅用）","委任状（任意）","変更計画書","計画変更通知書"],"not_rendered":{"charts":0,"images":1,"macros":1,"external_links":5,"defined_names":30,"comments":2,"pivot_tables":0},"unopened":[],"bounds":{"document_bytes":16777216,"sheet_cells":100000,"rows_first":2000,"rows_last":500,"rows_between":2000,"halvings":0,"cell_chars":16384,"cell_head_chars":4096},"cells_cut":0,"cells_raw":0,"read":"whole","date_system":"1900"}

{"sheet":"注意事項等","index":0,"n_rows":18,"n_cols":4,"rows_kept":18,"cut":false,"hidden":true,"merged":[[13,1,13,8],[7,1,7,8]]}
[]
[null,"入力にあたっての注意事項"]
[]
[null,"・赤色、橙色のシートは提出必須（赤は案件に合わせいずれか）となります。"]
[]
[null,"・青色のシートは『住宅・非住宅複合建築物』の場合に御提出ください。"]
[]
[null,"・黄緑色のシートは定められた様式は御座いませんので、他の様式を\n　お持ちでない場合にご利用ください。"]
[]
[null,"・紫色のシートは省エネ計画の変更の際に計画書に替えて御提出ください。"]
[]
[null,"・黄色の網掛け部分に文字等を入力していください。"]
[]
[null,"・□については、該当箇所をクリックするとチェックされます。\n  チェックされた部分をクリックするとチェックは消えます。"]
[]
[null,"・網掛け",null,"の部分の入力は不要です。"]
[]
[null,"・シート保護解除のPassWordは”0000”です。"]

{"sheet":"注意事項等 ","index":1,"n_rows":18,"n_cols":4,"rows_kept":18,"cut":false,"hidden":false,"merged":[[7,1,7,8],[13,1,13,8]]}
[]
[null,"入力にあたっての注意事項"]
[]
[null,"・赤色、橙色のシートは提出必須（赤は案件に合わせいずれか）となります。"]
[]
[null,"・青色のシートは『共同住宅・複合建築物』の場合に御提出ください。"]
[]
[null,"・黄緑色のシートは定められた様式は御座いませんので、他の様式を\n　お持ちでない場合にご利用ください。提出は任意です。"]
[]
[null,"・紫色のシートは省エネ計画の変更の際に計画書に替えて御提出ください。"]
[]
[null,"・黄色の網掛け部分に文字等を入力していください。"]
[]
[null,"・□については、該当箇所をクリックするとチェックされます。\n  チェックされた部分をクリックするとチェックは消えます。"]
[]
[null,"・網掛け",null,"の部分の入力は不要です。"]
[]
[null,"・シート保護解除のPassWordは”0000”です。"]

{"sheet":"質疑等連絡票","index":2,"n_rows":51,"n_cols":36,"rows_kept":51,"cut":false,"hidden":false,"merged":[[6,1,6,6],[6,7,6,29],[36,10,36,12],[36,14,36,15],[36,17,36,18],[12,1,13,3],[12,4,13,14],[12,15,12,17],[12,19,12,29],[13,15,13,17],[13,19,13,29],[14,1,14,3],[14,4,14,14],[14,15,14,17],[14,19,14,29],[15,1,15,3],[1,0,1,29],[4,1,4,6],[4,7,4,29],[5,1,5,6],[5,7,5,29],[25,1,25,3],[25,5,25,14],[25,15,25,17],[25,19,25,29],[16,2,16,14],[16,15,16,17],[16,19,16,29],[17,1,18,5],[18,6,18,29],[22,1,23,3],[22,4,23,14],[22,15,22,17],[22,19,22,29],[24,1,24,3],[24,4,24,14],[24,15,24,17],[24,19,24,29],[15,5,15,14],[15,15,15,17],[15,19,15,29],[51,1,51,33],[34,2,34,14],[34,15,34,17],[34,19,34,29],[32,1,32,3],[32,4,32,14],[32,15,32,17],[32,19,32,29],[33,1,33,3],[33,5,33,14],[33,15,33,17],[33,19,33,29],[36,20,36,30],[46,3,46,29],[8,24,8,29],[49,0,49,33],[50,1,50,33],[26,2,26,14],[26,15,26,17],[26,19,26,29],[30,1,31,3],[30,4,31,14],[30,15,30,17],[30,19,30,29],[31,15,31,17],[31,19,31,29],[23,15,23,17],[23,19,23,29]]}
[]
["省エネ適合性判定　質疑等連絡先シート",null,null,null,null,null,null,null,null,null,null,null,null,null,null,null,null,null,null,null,null,null,null,null,null,null,null,null,null,null,null,null,"申請の際は当シートも必ず添付してください。"]
[]
["○建築物の概要"]
[null,"建築物の名称"]
[null,"建　築　主　名",null,null,null,null,null,{"$f":"IF('２面'!AU6=0,\"申請書2面を記入して下さい\",'２面'!AV8)","v":"申請書2面を記入して下さい"}]
[null,"建築物の所在地",null,null,null,null,null,{"$f":"IF('３面'!J5=0,\"申請書3面を記入して下さい\",'３面'!J5)","v":"申請書3面を記入して下さい"}]
[null,"既申請・同時申請※",null,null,null,null,null,null,"設計住宅性能評価",null,null,null,null,null,null,null,"長期使用構造等確認",null,null,null,null,null,null,null,"低炭素建築物技術審査"]
[null,null,null,null,null,null,null,null,"フラット35S",null,null,null,null,null,null,null,"BELS",null,null,null,null,"その他（",null,null,null,null,null,null,null,null,"）"]
[null,"※近日申請予定の場合、申請時期を「備考」欄にご記入ください。"]
[]
["●判定料金請求書の送付先"]
[null,"会社名",null,null,null,null,null,null,null,null,null,null,null,null,null,"フリガナ",null,null,null,{"$f":"ASC(PHONETIC(T14))","v":""}]
[null,null,null,null,null,null,null,null,null,null,null,null,null,null,null,"氏　名"]
[null,"所　属",null,null,null,null,null,null,null,null,null,null,null,null,null,"TEL"]
[null,"住　所",null,null,"〒",null,null,null,null,null,null,null,null,null,null,"FAX"]
[null,null,null,null,null,null,null,null,null,null,null,null,null,null,null,"E-mail"]
[null,"請求書名宛先"]
[]
[null,"※原則、請求書は電子データにて送付します。書面をご希望の場合、「備考」欄にご記入ください。"]
[]
["●質疑書"]
[null,"会社名",null,null,null,null,null,null,null,null,null,null,null,null,null,"フリガナ",null,null,null,{"$f":"ASC(PHONETIC(T24))","v":""}]
[null,null,null,null,null,null,null,null,null,null,null,null,null,null,null,"氏　名"]
[null,"所　属",null,null,null,null,null,null,null,null,null,null,null,null,null,"TEL"]
[null,"住　所",null,null,"〒",null,null,null,null,null,null,null,null,null,null,"FAX"]
[null,null,null,null,null,null,null,null,null,null,null,null,null,null,null,"E-mail"]
[]
["●判定通知書・副本等の返送先"]
[]
[null,"会社名",null,null,null,null,null,null,null,null,null,null,null,null,null,"フリガナ",null,null,null,{"$f":"ASC(PHONETIC(T32))","v":""}]
[null,null,null,null,null,null,null,null,null,null,null,null,null,null,null,"氏　名"]
[null,"所　属",null,null,null,null,null,null,null,null,null,null,null,null,null,"TEL"]
[null,"住　所",null,null,"〒",null,null,null,null,null,null,null,null,null,null,"FAX"]
[null,null,null,null,null,null,null,null,null,null,null,null,null,null,null,"E-mail",null,null,null,null,null,null,null,null,null,null,null,null,null,null,null,null,null,null,null,"上旬"]
[null,null,null,null,null,null,null,null,null,null,null,null,null,null,null,null,null,null,null,null,null,null,null,null,null,null,null,null,null,null,null,null,null,null,null,"中旬"]
["●判定通知書の交付希望時期",null,null,null,null,null,null,null,null,null,null,null,null,"年",null,null,"月",null,null,"頃","※繁忙期等によりご希望に添えない場合があります。",null,null,null,null,null,null,null,null,null,null,null,null,null,null,"下旬"]
[]
["●判定通知書の交付方法"]
[null,"原則、判定通知書は電子データにて交付します。紙面をご希望の場合、次にチェックを入れてください。"]
[null,null,null,"紙面交付希望（1通につき2,200円（税込）加算されます）"]
["●計画書・計画通知書の提出方法、副本の返送方法"]
[null,"原則、計画書・計画通知書は電子データにて引き受けます。副本も電子データにて返送いたします。"]
[null,"計画書・計画通知書及び副本を書面にてご希望の場合、次にチェックを入れてください。"]
[null,null,null,"書面申請・書面副本希望（1申請につき2,200円（税込）加算されます）"]
[]
["●備考"]
[]
[]
["（注意）"]
[null,"　１．各連絡先、送付先及び判定通知書の交付ご希望時期（予定）をご記入の上、申請書と併せて御提出ください。"]

{"sheet":"計画書","index":3,"n_rows":33,"n_cols":34,"rows_kept":33,"cut":false,"hidden":false,"merged":[[33,1,33,33],[18,1,20,32],[11,19,11,32],[13,20,13,32],[15,20,15,32],[32,1,32,33],[23,1,23,12],[24,13,24,24],[0,0,0,33],[31,0,31,33],[1,0,1,33],[14,19,14,32],[16,20,16,32],[24,1,24,12],[25,2,25,10],[5,31,5,32],[10,20,10,32],[5,25,5,26],[7,0,7,13],[5,28,5,29],[3,0,3,33],[12,20,12,32],[23,25,23,32],[23,13,23,24]]}
["様式第一（第三条第一項関係）（日本産業規格Ａ列４番）"]
["（第一面）"]
[]
["計画書"]
[]
[null,null,null,null,null,null,null,null,null,null,null,null,null,null,null,null,null,null,null,null,null,null,null,null,"令和",null,null,"年",null,null,"月",null,null,"日"]
[]
["一般財団法人ベターリビング　殿"]
[]
[null,null,null,null,null,null,null,null,null,null,null,null,null,null,null,null,null,null,null,"提出者の住所又は主たる事務所の所在地"]
[]
[null,null,null,null,null,null,null,null,null,null,null,null,null,null,null,null,null,null,null,"提出者の氏名又は名称\n代表者の氏名"]
[]
[]
[null,null,null,null,null,null,null,null,null,null,null,null,null,null,null,null,null,null,null,"設計者氏名"]
[null,null,null,null,null,null,null,null,null,null,null,null,null,null,null,null,null,null,null,null,{"$f":"IF('２面'!M19=\"\",\"２面を記入して下さい\",'２面'!L21)","v":"２面を記入して下さい"}]
[null,null,null,null,null,null,null,null,null,null,null,null,null,null,null,null,null,null,null,null,{"$f":"IF('２面'!M19=\"\",\"２面を記入して下さい\",'２面'!M19)","v":"２面を記入して下さい"}]
[]
[null,"　建築物のエネルギー消費性能の向上等に関する法律第11条第１項（同法第14条第２項の規定により読み替えて適用される場合を含む。）の規定により、建築物エネルギー消費性能確保計画を提出します。この計画書及び添付図書に記載の事項は、事実に相違ありません。"]
[]
[]
[]
[null,"（本欄には記入しないでください。）"]
[null,"受付欄",null,null,null,null,null,null,null,null,null,null,null,"適合判定通知書番号欄",null,null,null,null,null,null,null,null,null,null,null,"決裁欄"]
[null,"年　　月　　日",null,null,null,null,null,null,null,null,null,null,null,"年　　月　　日"]
[null,null,"第 CBL-SH-",null,null,null,null,null,null,null,null,"号",null,null,"第",null,null,null,null,null,null,null,null,"号"]
[null,null,"係員氏名",null,null,null,null,null,null,null,null,null,null,null,"係員氏名"]
[]
[]
[]
[]
["（注意）"]
[null,"　１．提出者が法人である場合には、代表者の氏名を併せて記載してください。"]

{"sheet":"計画通知書","index":4,"n_rows":36,"n_cols":36,"rows_kept":36,"cut":false,"hidden":false,"merged":[[36,1,36,33],[11,28,11,29],[11,31,11,32],[17,20,17,32],[19,1,21,32],[24,1,24,12],[24,13,24,24],[11,25,11,26],[32,0,32,33],[13,20,13,32],[26,2,26,10],[25,1,25,12],[25,13,25,24],[0,0,0,33],[1,0,1,33],[3,0,3,33],[5,28,5,29],[5,31,5,32],[9,24,9,32],[5,25,5,26],[7,0,7,12],[14,20,14,32],[24,25,24,32],[16,20,16,32]]}
["様式第十一（第九条第一項関係）（日本産業規格Ａ列４番）"]
["（第一面）"]
[]
["建築物のエネルギー消費性能の向上等に関する法律第12条第２項の規定による計画通知書"]
[]
[null,null,null,null,null,null,null,null,null,null,null,null,null,null,null,null,null,null,null,null,null,null,null,null,{"$f":"計画書!Y6","v":"令和"},null,null,"年",null,null,"月",null,null,"日",null,"申請年月日"]
[]
["一般財団法人ベターリビング　殿"]
[]
[null,null,null,null,null,null,null,null,null,null,null,null,null,null,null,null,null,null,null,null,null,null,null,"第",null,null,null,null,null,null,null,null,null,"号",null,"文書管理番号（ある場合のみ記入）"]
[]
[null,null,null,null,null,null,null,null,null,null,null,null,null,null,null,null,null,null,null,null,null,null,null,null,{"$f":"計画書!Y6","v":"令和"},null,null,"年",null,null,"月",null,null,"日",null,"文書管理番号の発番日（ある場合のみ記入）"]
[]
[null,null,null,null,null,null,null,null,null,null,null,null,null,null,null,null,null,null,null,"通知者官職"]
[]
[]
[null,null,null,null,null,null,null,null,null,null,null,null,null,null,null,null,null,null,null,"設計者氏名",{"$f":"IF('２面'!M19=\"\",\"２面を記入して下さい\",'２面'!L21)","v":"２面を記入して下さい"}]
[null,null,null,null,null,null,null,null,null,null,null,null,null,null,null,null,null,null,null,null,{"$f":"IF('２面'!M19=\"\",\"２面を記入して下さい\",'２面'!M19)","v":"２面を記入して下さい"}]
[]
[null,"　建築物のエネルギー消費性能の向上等に関する法律第12条第２項（同法第14条第２項の規定により読み替えて適用される場合を含む。）の規定により建築物エネルギー消費性能確保計画を通知します。"]
[]
[]
[]
[null,"（本欄には記入しないでください。）"]
[null,"受付欄",null,null,null,null,null,null,null,null,null,null,null,"適合判定通知書番号欄",null,null,null,null,null,null,null,null,null,null,null,"決済欄"]
[null,"年　　月　　日",null,null,null,null,null,null,null,null,null,null,null,"年　　月　　日"]
[null,null,"第 CBL-SH-",null,null,null,null,null,null,null,null,"号",null,null,"第",null,null,null,null,null,null,null,null,"号"]
[null,null,"係員氏名",null,null,null,null,null,null,null,null,null,null,null,"係員氏名"]
[]
[]
[]
[]
["（注意）"]
["　１.第二面から第五面までとして別記様式第一の第二面から第五面までに記載すべき事項を記載"]
["　　した書類を添えてください。"]
["　２.別記様式第一の（注意）に準じて記入してください。"]

{"sheet":"２面","index":5,"n_rows":75,"n_cols":55,"rows_kept":75,"cut":false,"hidden":false,"merged":[[59,0,59,35],[13,11,13,38],[14,11,14,38],[0,0,0,40],[18,12,18,38],[17,12,17,13],[17,21,17,27],[17,33,17,37],[4,11,4,38],[5,11,5,38],[12,11,12,38],[6,11,6,38],[7,11,7,38],[8,11,8,38],[11,11,11,38],[10,11,10,38],[31,11,31,38],[19,21,19,27],[19,33,19,37],[21,11,21,38],[22,11,22,38],[19,12,19,13],[26,33,26,37],[27,12,27,38],[28,12,28,13],[28,21,28,27],[28,33,28,37],[56,2,57,38],[46,12,46,13],[46,21,46,27],[46,33,46,37],[48,11,48,38],[49,11,49,38],[51,11,51,38],[53,12,53,37],[17,41,24,42],[28,41,32,42],[37,41,41,42],[54,12,54,37],[35,21,35,27],[35,33,35,37],[36,12,36,38],[37,12,37,13],[37,21,37,27],[37,33,37,37],[32,11,32,38],[23,11,23,38],[24,11,24,38],[26,12,26,13],[26,21,26,27],[30,11,30,38],[46,41,50,42],[20,11,20,38],[29,11,29,38],[38,11,38,38],[47,11,47,38],[50,11,50,38],[45,12,45,38],[39,11,39,38],[40,11,40,38],[41,11,41,38],[33,11,33,38],[35,12,35,13],[42,11,42,38],[44,12,44,13],[44,21,44,27],[44,33,44,37]]}
["(第二面)"]
[]
[null,"[建築主等に関する事項]"]
[null,"【1.建築主】"]
[null,null,"【イ.氏名のフリガナ】"]
[null,null,"【ロ.氏名】",null,null,null,null,null,null,null,null,null,null,null,null,null,null,null,null,null,null,null,null,null,null,null,null,null,null,null,null,null,null,null,null,null,null,null,null,null,null,null,null,{"$f":"IF(L6=\"\",0,1)","v":0},{"$f":"IF(その他の申請者!L6=\"\",0,1)","v":0},{"$f":"IF(その他の申請者!L12=\"\",0,1)","v":0},{"$f":"AR6+AS6+AT6","v":0},{"$f":"IF(AU6=1,AR7,\"\")","v":""}]
[null,null,"【ハ.郵便番号】",null,null,null,null,null,null,null,null,null,null,null,null,null,null,null,null,null,null,null,null,null,null,null,null,null,null,null,null,null,null,null,null,null,null,null,null,null,null,null,null,{"$f":"L6","v":0},{"$f":"IF(その他の申請者!L6=\"\",\"\",その他の申請者!L6)","v":""},{"$f":"IF(その他の申請者!L12=\"\",\"\",その他の申請者!L12)","v":""},null,{"$f":"IF(AU6>1,AR7&\"　他 \",\"\")","v":""}]
[null,null,"【ニ.住所】",null,null,null,null,null,null,null,null,null,null,null,null,null,null,null,null,null,null,null,null,null,null,null,null,null,null,null,null,null,null,null,null,null,null,null,null,null,null,null,null,null,null,null,null,{"$f":"AV6&AV7","v":""}]
[null,null,"【ホ.電話番号】"]
[null,"【2.代理者】"]
[null,null,"【イ.氏名】"]
[null,null,"【ロ.勤務先】"]
[null,null,"【ハ.郵便番号】"]
[null,null,"【ニ.住所】"]
[null,null,"【ホ.電話番号】"]
[null,"【3.設計者】"]
[null,"（代表となる設計者）"]
[null,null,"【イ.資格】",null,null,null,null,null,null,null,null,"（",null,null,"）","建築士",null,null,null,null,"（",null,null,null,null,null,null,null,"）","登録第",null,null,null,null,null,null,null,null,"号"]
[null,null,"【ロ.氏名】",null,null,null,null,null,null,null,null,null,{"$f":"IF($BC$23=1,L11,\"\")","v":""}]
[null,null,"【ハ.建築士事務所名】",null,null,null,null,null,null,null,null,"（",null,null,"）","建築士事務所",null,null,null,null,"（",null,null,null,null,null,null,null,"）","知事登録第",null,null,null,null,null,null,null,null,"号"]
[null,null,null,null,null,null,null,null,null,null,null,{"$f":"IF($BC$23=1,L12,\"\")","v":""}]
[null,null,"【ニ.郵便番号】",null,null,null,null,null,null,null,null,{"$f":"IF($BC$23=1,L13,\"\")","v":""}]
[null,null,"【ホ.所在地】",null,null,null,null,null,null,null,null,{"$f":"IF($BC$23=1,L14,\"\")","v":""},null,null,null,null,null,null,null,null,null,null,null,null,null,null,null,null,null,null,null,null,null,null,null,null,null,null,null,null,null,null,null,null,null,null,null,null,null,null,null,null,null,false,{"$f":"BB23*1","v":0}]
[null,null,"【ヘ.電話番号】",null,null,null,null,null,null,null,null,{"$f":"IF($BC$23=1,L15,\"\")","v":""}]
[null,null,"【ト.作成した設計図書】"]
[null,"（その他の設計者）"]
[null,null,"【イ.資格】",null,null,null,null,null,null,null,null,"（",null,null,"）","建築士",null,null,null,null,"（",null,null,null,null,null,null,null,"）","登録第",null,null,null,null,null,null,null,null,"号"]
[null,null,"【ロ.氏名】"]
[null,null,"【ハ.建築士事務所名】",null,null,null,null,null,null,null,null,"（",null,null,"）","建築士事務所",null,null,null,null,"（",{"$f":"IF($BC$31=1,V20,\"\")","v":""},null,null,null,null,null,null,"）","知事登録第",null,null,null,{"$f":"IF($BC$31=1,AH20,\"\")","v":""},null,null,null,null,"号"]
[null,null,null,null,null,null,null,null,null,null,null,{"$f":"IF($BC$31=1,L21,\"\")","v":""}]
[null,null,"【ニ.郵便番号】",null,null,null,null,null,null,null,null,{"$f":"IF($BC$31=1,L22,\"\")","v":""},null,null,null,null,null,null,null,null,null,null,null,null,null,null,null,null,null,null,null,null,null,null,null,null,null,null,null,null,null,null,null,null,null,null,null,null,null,null,null,null,null,false,{"$f":"BB31*1","v":0}]
[null,null,"【ホ.所在地】",null,null,null,null,null,null,null,null,{"$f":"IF($BC$31=1,L23,\"\")","v":""}]
[null,null,"【ヘ.電話番号】",null,null,null,null,null,null,null,null,{"$f":"IF($BC$31=1,L24,\"\")","v":""}]
[null,null,"【ト.作成した設計図書】"]
[]
[null,null,"【イ.資格】",null,null,null,null,null,null,null,null,"（",null,null,"）","建築士",null,null,null,null,"（",null,null,null,null,null,null,null,"）","登録第",null,null,null,null,null,null,null,null,"号"]
[null,null,"【ロ.氏名】"]
[null,null,"【ハ.建築士事務所名】",null,null,null,null,null,null,null,null,"（",null,null,"）","建築士事務所",null,null,null,null,"（",{"$f":"IF($BC$40=1,V29,\"\")","v":""},null,null,null,null,null,null,"）","知事登録第",null,null,null,{"$f":"IF($BC$40=1,AH29,\"\")","v":""},null,null,null,null,"号"]
[null,null,null,null,null,null,null,null,null,null,null,{"$f":"IF($BC$40=1,L30,\"\")","v":""}]
[null,null,"【ニ.郵便番号】",null,null,null,null,null,null,null,null,{"$f":"IF($BC$40=1,L31,\"\")","v":""},null,null,null,null,null,null,null,null,null,null,null,null,null,null,null,null,null,null,null,null,null,null,null,null,null,null,null,null,null,null,null,null,null,null,null,null,null,null,null,null,null,false,{"$f":"BB40*1","v":0}]
[null,null,"【ホ.所在地】",null,null,null,null,null,null,null,null,{"$f":"IF($BC$40=1,L32,\"\")","v":""}]
[null,null,"【ヘ.電話番号】",null,null,null,null,null,null,null,null,{"$f":"IF($BC$40=1,L33,\"\")","v":""}]
[null,null,"【ト.作成した設計図書】"]
[]
[null,null,"【イ.資格】",null,null,null,null,null,null,null,null,"（",null,null,"）","建築士",null,null,null,null,"（",null,null,null,null,null,null,null,"）","登録第",null,null,null,null,null,null,null,null,"号"]
[null,null,"【ロ.氏名】"]
[null,null,"【ハ.建築士事務所名】",null,null,null,null,null,null,null,null,"（",null,null,"）","建築士事務所",null,null,null,null,"（",{"$f":"IF($BC$49=1,V38,\"\")","v":""},null,null,null,null,null,null,"）","知事登録第",null,null,null,{"$f":"IF($BC$49=1,AH38,\"\")","v":""},null,null,null,null,"号"]
[null,null,null,null,null,null,null,null,null,null,null,{"$f":"IF($BC$49=1,L39,\"\")","v":""}]
[null,null,"【ニ.郵便番号】",null,null,null,null,null,null,null,null,{"$f":"IF($BC$49=1,L40,\"\")","v":""},null,null,null,null,null,null,null,null,null,null,null,null,null,null,null,null,null,null,null,null,null,null,null,null,null,null,null,null,null,null,null,null,null,null,null,null,null,null,null,null,null,false,{"$f":"BB49*1","v":0}]
[null,null,"【ホ.所在地】",null,null,null,null,null,null,null,null,{"$f":"IF($BC$49=1,L41,\"\")","v":""}]
[null,null,"【ヘ.電話番号】",null,null,null,null,null,null,null,null,{"$f":"IF($BC$49=1,L42,\"\")","v":""}]
[null,null,"【ト.作成した設計図書】"]
[null,"【4.確認の申請】"]
[null,null,null,null,null,null,null,null,null,null,null,"（",null,null,null,null,null,null,null,null,null,null,null,null,null,null,null,null,null,null,null,null,null,null,null,null,null,null,"）"]
[null,null,null,null,null,null,null,null,null,null,null,"（",null,null,null,null,null,null,null,null,null,null,null,null,null,null,null,null,null,null,null,null,null,null,null,null,null,null,"）"]
[null,"【5.備考】"]
[null,null,{"$f":"IF(質疑等連絡票!H5=\"\",\"\",質疑等連絡票!H5)","v":""}]
[]
[]
["（注意）"]
[null,"１．建築主が２者以上の場合は、【１．建築主】の欄は代表となる建築主について記入し、別紙に他の建築主について記入して"]
[null,null,"添えてください。"]
[null,"２．【１．建築主】の欄は、建築主が法人の場合は、「イ」は法人の名称及び代表者の氏名のフリガナを、「ロ」は法人の名称及び"]
[null,null,"代表者の氏名を、「ニ」は法人の所在地を、建築主がマンションの管理を行う建物の区分所有等に関する法律第３条"]
[null,null,"又は第65条に規定する団体の場合は、「イ」は団体の名称及び代表者の氏名のフリガナを、「ロ」は団体の名称及び"]
[null,null,"代表者の氏名を、「ニ」は団体の所在地を記入してください。"]
[null,"３．【２．代理者】の欄は、建築主からの委任を受けて提出をする場合に記入してください。"]
[null,"４．【３．設計者】の欄は、代表となる設計者及び提出に係る建築物のエネルギー消費性能確保計画に係る他のすべての設計者について記入"]
[null,null,"してください。設計者が建築士事務所に属しているときは、その名称を書き、建築士事務所に属していないときは、"]
[null,null,"所在地は設計者の住所を書いてください。"]
[null,"５．【４．確認の申請】の欄は、該当するチェックボックスに「✓」マークを入れ、申請済の場合には、申請をした市町村若しくは都道府県名又は"]
[null,null,"指定確認検査機関の名称及び事務所の所在地を記入してください。未申請の場合には、申請する予定の市町村若しくは"]
[null,null,"都道府県名又は指定確認検査機関の名称及び事務所の所在地を記入し、申請をした後に、遅滞なく、申請をした旨"]
[null,null,"（申請先を変更した場合においては、申請をした市町村名若しくは都道府県名又は指定確認検査機関の名称及び事務所の"]
[null,null,"所在地を含む。）を届け出てください。なお、所在地については、〇〇県〇〇市、郡〇〇町、村、程度で結構です。"]

{"sheet":"その他の申請者","index":6,"n_rows":73,"n_cols":3,"rows_kept":73,"cut":false,"hidden":false,"merged":[[8,11,8,36],[56,0,56,33],[13,11,13,36],[14,11,14,36],[10,11,10,36],[11,11,11,36],[12,11,12,36],[0,0,0,38],[4,11,4,36],[5,11,5,36],[6,11,6,36],[7,11,7,36]]}
["(第二面別紙)"]
[]
[null,"[建築主等に関する事項]"]
[null,"【その他の建築主】"]
[null,null,"【イ.氏名のフリガナ】"]
[null,null,"【ロ.氏名】"]
[null,null,"【ハ.郵便番号】"]
[null,null,"【ニ.住所】"]
[null,null,"【ホ.電話番号】"]
[null,"【その他の建築主】"]
[null,null,"【イ.氏名のフリガナ】"]
[null,null,"【ロ.氏名】"]
[null,null,"【ハ.郵便番号】"]
[null,null,"【ニ.住所】"]
[null,null,"【ホ.電話番号】"]
[]
[]
[]
[]
[]
[]
[]
[]
[]
[]
[]
[]
[]
[]
[]
[]
[]
[]
[]
[]
[]
[]
[]
[]
[]
[]
[]
[]
[]
[]
[]
[]
[]
[]
[]
[]
[]
[]
[]
[]
[]
["（注意）"]
[null,"１．建築主が２者以上の場合は、【１．建築主】の欄は代表となる建築主について記入し、別紙に他の建築主について記入して"]
[null,null,"添えてください。"]
[null,"２．【１．建築主】の欄は、建築主が法人の場合は、「イ」は法人の名称及び代表者の氏名のフリガナを、「ロ」は法人の名称及び"]
[null,null,"代表者の氏名を、「ニ」は法人の所在地を、建築主がマンションの管理を行う建物の区分所有等に関する法律第３条"]
[null,null,"又は第65条に規定する団体の場合は、「イ」は団体の名称及び代表者の氏名のフリガナを、「ロ」は団体の名称及び"]
[null,null,"代表者の氏名を、「ニ」は団体の所在地を記入してください。"]
[null,"３．【２．代理者】の欄は、建築主からの委任を受けて提出をする場合に記入してください。"]
[null,"４．【２．代理者】及び【３．設計者】の欄は、代理者又は設計者が建築士事務所に属しているときは、その名称を書き、建築士事務所に属して"]
[null,null,"いないときは、所在地はそれぞれ代理者又は設計者の住所を書いてください。"]
[null,"５．【３．設計者】の欄は、代表となる設計者及び提出に係る建築物のエネルギー消費性能確保計画に係る他のすべての設計者について記入"]
[null,null,"してください。"]
[null,"６．【４．確認の申請】の欄は、該当するチェックボックスに「」マークを入れ、申請済の場合には、申請をした市町村若しくは都道府県名又は"]
[null,null,"指定確認検査機関の名称及び事務所の所在地を記入してください。未申請の場合には、申請する予定の市町村若しくは"]
[null,null,"都道府県名又は指定確認検査機関の名称及び事務所の所在地を記入し、申請をした後に、遅滞なく、申請をした旨"]
[null,null,"（申請先を変更した場合においては、申請をした市町村若しくは都道府県名又は指定確認検査機関の名称及び事務所の"]
[null,null,"所在地を含む。）を届け出てください。"]

{"sheet":"３面","index":7,"n_rows":46,"n_cols":45,"rows_kept":46,"cut":false,"hidden":false,"merged":[[18,7,20,37],[21,7,23,37],[25,10,25,15],[25,20,25,26],[16,12,16,14],[16,22,16,24],[43,0,43,33],[34,16,34,17],[34,19,34,20],[38,2,40,36],[28,11,28,13],[31,16,31,17],[31,12,31,14],[34,12,34,14],[31,19,31,20],[0,0,0,37],[4,9,4,36],[7,9,7,13],[10,9,10,13],[13,9,13,13],[1,0,1,38]]}
["(第三面)"]
["建築物エネルギー消費性能確保計画"]
[null,"[建築物に関する事項]"]
[]
[null,"【1.地名地番】"]
[]
[]
[null,"【2.敷地面積】",null,null,null,null,null,null,null,null,null,null,null,null,"m2"]
[]
[]
[null,"【3.建築面積】",null,null,null,null,null,null,null,null,null,null,null,null,"m2"]
[]
[]
[null,"【4.延べ面積】",null,null,null,null,null,null,null,null,null,null,null,null,"m2"]
[]
[]
[null,"【5.建築物の階数】",null,null,null,null,null,null,null,"（地上）",null,null,null,null,null,null,"階",null,null,"（地下）",null,null,null,null,null,null,"階"]
[]
[null,null,null,null,null,null,null,null,null,null,null,null,null,null,null,null,null,null,null,null,null,null,null,null,null,null,null,null,null,null,null,null,null,null,null,null,null,null,null,null,"非住宅",false,null,"一戸建て",false]
[null,"【6.建築物の用途】",null,null,null,null,null,null,null,null,null,null,null,null,null,null,null,null,null,null,null,null,null,null,null,null,null,null,null,null,null,null,null,null,null,null,null,null,null,null,"複合",false,null,"共同",false]
[]
[]
[null,"【7.工事種別】",null,null,null,null,null,null,null,null,null,null,null,null,null,null,null,null,null,null,null,null,null,null,null,null,null,null,null,null,null,null,null,null,null,null,null,null,null,null,"新築",false]
[null,null,null,null,null,null,null,null,null,null,null,null,null,null,null,null,null,null,null,null,null,null,null,null,null,null,null,null,null,null,null,null,null,null,null,null,null,null,null,null,"増築",false]
[null,null,null,null,null,null,null,null,null,null,null,null,null,null,null,null,null,null,null,null,null,null,null,null,null,null,null,null,null,null,null,null,null,null,null,null,null,null,null,null,"改築",false]
[null,"【8.構造】",null,null,null,null,null,null,null,null,null,null,null,null,null,null,"造　一部",null,null,null,null,null,null,null,null,null,null,"造"]
[]
[]
[null,"【9.該当する地域の区分】",null,null,null,null,null,null,null,null,null,null,null,null,"地域"]
[]
[]
[null,"【10.工事着手予定年月日】",null,null,null,null,null,null,null,null,null,null,null,null,null,"年",null,null,"月",null,null,"日"]
[]
[]
[null,"【11.工事完了予定年月日】",null,null,null,null,null,null,null,null,null,null,null,null,null,"年",null,null,"月",null,null,"日"]
[]
[]
[null,"【12.備考】"]
[]
[]
[]
[]
[]
["（注意）"]
[null,"１．【６．建築物の用途】及び【７．工事種別】の欄は、該当するチェックボックスに「✓」マークを入れてください。"]
[null,"２．【９．該当する地域の区分】の欄において、「地域の区分」は、基準省令第１条第１項第２号イ⑴の地域の区分をいいます。"]

{"sheet":"4面①（非住宅） ","index":8,"n_rows":65,"n_cols":44,"rows_kept":65,"cut":false,"hidden":true,"merged":[[0,0,0,37],[3,9,3,36],[6,9,6,36],[7,9,7,13],[10,11,10,16],[13,11,13,15],[14,11,14,15],[15,11,15,15],[16,11,16,15],[12,11,12,15],[23,16,23,21],[24,16,24,21],[33,4,33,32],[36,0,36,33],[25,7,25,10],[29,7,29,10],[26,9,26,12],[30,9,30,12],[12,20,12,24],[12,29,12,33],[13,20,13,24],[14,20,14,24],[15,20,15,24],[16,20,16,24],[13,29,13,33],[14,29,14,33],[15,29,15,33],[16,29,16,33]]}
["(第四面)"]
[]
[]
[null,"【1.非住宅部分の用途】"]
[]
[]
[null,"【2.建築物の住戸の数】"]
[null,null,null,null,null,"建築物全体",null,null,null,null,null,null,null,null,"戸"]
[]
[]
[null,"【3.建築物の床面積】",null,null,null,null,null,null,null,null,"（","床面積",null,null,null,null,null,"）",null,"（","開放部分を除いた",null,null,null,null,null,null,null,"（","開放部分及び共用部分を"]
[null,null,null,null,null,null,null,null,null,null,null,null,null,null,null,null,null,null,null,null,"部分の床面積",null,null,null,null,"）",null,null,null,"除いた部分の床面積",null,null,null,null,null,null,"）"]
[null,null,"【イ．新築】",null,null,null,null,null,null,null,"（",null,null,null,null,null,"m2）",null,null,"（",null,null,null,null,null,"m2）",null,null,"（",null,null,null,null,null,"m2）",null,null,null,null,null,null,"新築",{"$f":"IF(L13=\"\",FALSE,TRUE)","v":false},{"$f":"IF((AQ13=TRUE)*AND('３面'!AP23=FALSE),\"3面【7.工事種別】のチェックがありません。\",\"\")","v":""}]
[null,null,"【ロ．増築】",null,null,null,null,null,null,"全体","（",null,null,null,null,null,"m2）",null,null,"（",null,null,null,null,null,"m2）",null,null,"（",null,null,null,null,null,"m2）",null,null,null,null,null,null,"増築",{"$f":"IF(L14=\"\",FALSE,TRUE)","v":false},{"$f":"IF((AQ14=TRUE)*AND('３面'!AP24=FALSE),\"3面【7.工事種別】のチェックがありません。\",\"\")","v":""}]
[null,null,null,null,null,null,null,"増築部分",null,null,"（",null,null,null,null,null,"m2）",null,null,"（",null,null,null,null,null,"m2）",null,null,"（",null,null,null,null,null,"m2）"]
[null,null,"【ハ．改築】",null,null,null,null,null,null,"全体","（",null,null,null,null,null,"m2）",null,null,"（",null,null,null,null,null,"m2）",null,null,"（",null,null,null,null,null,"m2）",null,null,null,null,null,null,"改築",{"$f":"IF(L16=\"\",FALSE,TRUE)","v":false},{"$f":"IF((AQ16=TRUE)*AND('３面'!AP25=FALSE),\"3面【7.工事種別】のチェックがありません。\",\"\")","v":""}]
[null,null,null,null,null,null,null,"改築部分",null,null,"（",null,null,null,null,null,"m2）",null,null,"（",null,null,null,null,null,"m2）",null,null,"（",null,null,null,null,null,"m2）"]
[]
[]
[null,"【4.建築物のエネルギー消費性能】"]
[null,null,"【イ．非住宅建築物】"]
[null,null,"（一次エネルギー消費量に関する事項）"]
[null,null,null,null,"基準省令第１条第１項第１号イの基準",null,null,null,null,null,null,null,null,null,null,null,null,null,null,null,null,null,null,null,null,null,null,null,null,null,null,null,null,null,null,null,null,null,null,null,null,null,null,true]
[null,null,null,"基準一次エネルギー消費量",null,null,null,null,null,null,null,null,null,null,null,null,null,null,null,null,null,null,"GJ/年"]
[null,null,null,"設計一次エネルギー消費量",null,null,null,null,null,null,null,null,null,null,null,null,null,null,null,null,null,null,"GJ/年"]
[null,null,null,"ＢＥＩ",null,null,"（",null,null,null,null,"）"]
[null,null,null,"（ＢＥＩの基準値",null,null,null,null,null,null,null,null,null,"）"]
[]
[null,null,null,null,"基準省令第１条第１項第１号ロの基準",null,null,null,null,null,null,null,null,null,null,null,null,null,null,null,null,null,null,null,null,null,null,null,null,null,null,null,null,null,null,null,null,null,null,null,null,null,null,true]
[null,null,null,"ＢＥＩ",null,null,"（",null,null,null,null,"）"]
[null,null,null,"（ＢＥＩの基準値",null,null,null,null,null,null,null,null,null,"）"]
[]
[null,null,null,null,"国土交通大臣が認める方法及びその結果"]
[null,null,null,"（",null,null,null,null,null,null,null,null,null,null,null,null,null,null,null,null,null,null,null,null,null,null,null,null,null,null,null,null,null,"）"]
[]
[]
["（注意）"]
[null,"１．【１．非住宅部分の用途】の欄は、建築基準法施行規則（昭和25年建設省令第40号）別紙の表の用途の区分に従い記入して下さい。"]
[null,"２．【２．建築物の住戸の数】の欄は、第三面の【６．建築物の用途】で「共同住宅等」又は「複合建築物」を選んだ場合のみ記載してください。"]
[null,"３．【3．建築物の床面積】の欄は、第三面の【７．工事種別】の欄の工事種別に応じ、新築等に係る建築物の床面積を記載してください。増築"]
[null,null,"又は改築の場合は、延べ面積を併せて記載してください。「開放部分及び共用部分を除いた部分の床面積」は、第三面の【６．建築物の用途】で"]
[null,null,"「共同住宅等」又は「複合建築物」を選んだ場合のみ記載してください。"]
[null,"４．【３．建築物の床面積】の欄において、「床面積」は、単に建築物の床面積をいい、「開放部分を除いた部分の床面積」は、建築物のエネルギー"]
[null,null,"消費性能の向上等に関する法律施行令（平成28年政令第８号。以下「令」という。）第３条に規定する床面積をいい、「開放部分及び共用部"]
[null,null,"分を除いた部分の床面積」は、同条に規定する階又はその一部及び住宅部分のうち共用部分を除いた部分の面積をいいます。"]
[null,"５．【４．建築物のエネルギー消費性能】の欄は、第三面の【６．建築物の用途】の欄において選択した用途に応じて、イからニまでのいずれかについて、"]
[null,null,"以下の内容に従って記載してください。"]
[null,null,"なお、イからニまでの事項のうち、記載しないものについては削除して構いません。"]
[null,null,"(1)　（外壁、窓等を通しての熱の損失の防止に関する事項）及び（一次エネルギー消費量に関する事項）のそれぞれについて、"]
[null,null,null,"該当するチェックボックスに「✓」マークを入れた上で記載してください。"]
[null,null,"(2)　「外皮平均熱貫流率」及び「冷房期の平均日射熱取得率」については、それぞれの基準値（基準省令第１条第１項第２号イ(1)の表"]
[null,null,null,"に掲げる数値をいう。）と併せて記載してください。"]
[null,null,"(3)　【ハ．共同住宅等】及び【ニ．複合建築物】の（住宅部分）の「基準一次エネルギー消費量」、「設計一次エネルギー消費量」及び"]
[null,null,null,"「ＢＥＩ」については、住宅（複合建築物の場合は住宅部分。以下この(3)において同じ。）全体（住宅の増築又は改築をする場合にあっては、"]
[null,null,null,"当該増築又は改築をする住宅の部分全体）での数値を記載してください。"]
[null,null,"(4)　「基準省令第１条第１項第２号イ(2)の基準」又は「基準省令第１条第１項第２号ロ(2)の基準」を用いる場合は、別紙に詳細を記載してください。"]
[null,null,"(5)　「ＢＥＩ」は、設計一次エネルギー消費量（その他一次エネルギー消費量を除く。）を基準一次エネルギー消費量（その他一次エネルギー消費量を除く。"]
[null,null,null,"以下この(5)及び(6)において同じ。）で除したものをいいます。ただし、非住宅部分の「ＢＥＩ」を算出する場合における当該基準一次エネルギー消費量"]
[null,null,null,"（(5)において「引上げ前の基準一次エネルギー消費量」という。）についての基準省令第３条第１項の規定の適用については、"]
[null,null,null,"同項中「ＥＳＴ＝｛（ＥＳＡＣ＋ＥＳＶ＋ＥＳＬ＋ＥＳＷ＋ＥＳＥＶ）×Ｂ＋ＥＭ｝×10-3」とあるのは、「ＥＳＴ＝（ＥＳＡＣ＋ＥＳＶ＋ＥＳＬ＋ＥＳＷ＋ＥＳＥＶ＋ＥＭ）×10-3」とします。"]
[null,null,null,"「ＢＥＩ」を記載する場合は、小数点第二位未満を切り上げた数値としてください。"]
[null,null,"(6)　「ＢＥＩの基準値」は、基準一次エネルギー消費量を引上げ前の基準一次エネルギー消費量で除したものをいいます。なお、非住宅部分を二以上の用途に供する場合にあっては、"]
[null,null,null,"用途ごとに算出した基準一次エネルギー消費量の合計を、用途ごとに算出した引上げ前の基準一次エネルギー消費量の合計で除したものをいいます。"]
[null,null,null,"「ＢＥＩの基準値」を記載する場合は、小数点第二位未満を切り上げた数値としてください。"]
[null,"６．　第四面は、確認申請等他の制度の申請書の写しに必要事項を補って追加して記載した書面その他の記載すべき事項の全てが明示された別の書面をもって代えることができます。"]

{"sheet":"4面② (戸建・共同住宅・複合建築)","index":9,"n_rows":115,"n_cols":44,"rows_kept":115,"cut":false,"hidden":true,"merged":[[78,9,78,26],[49,8,49,25],[86,0,86,33],[12,17,12,22],[13,17,13,22],[14,8,14,11],[28,17,28,22],[29,17,29,22],[30,8,30,11],[43,11,43,14],[61,13,61,16],[71,11,71,14],[81,2,83,36],[17,5,17,22],[24,5,24,22],[33,5,33,22],[72,13,72,16],[60,22,60,27],[64,8,64,25],[69,20,69,25],[70,20,70,25],[4,12,4,14],[4,23,4,25],[5,14,5,16],[5,20,5,22],[59,22,59,27],[44,13,44,16],[46,11,46,14],[47,13,47,16],[42,20,42,25],[8,5,8,22],[55,8,55,25],[41,20,41,25]]}
[]
[null,null,"【ロ．一戸建ての住宅】"]
[null,null,"（外壁、壁等を通しての熱の損失の防止に関する事項）"]
[null,null,null,null,"基準省令第１条第１項第２号イ⑴の基準",null,null,null,null,null,null,null,null,null,null,null,null,null,null,null,null,null,null,null,null,null,null,null,null,null,null,null,null,null,null,null,null,null,null,null,null,null,null,false]
[null,null,null,null,"外皮平均熱貫流率",null,null,null,null,null,null,null,null,null,null,"W/(㎡・K)",null,null,null,"（基準値",null,null,null,null,null,null,"W/(㎡・K)）"]
[null,null,null,null,"冷房期の平均日射熱取得率",null,null,null,null,null,null,null,null,null,null,null,null,"（基準値",null,null,null,null,null,null,"）"]
[null,null,null,null,"基準省令第１条第１項第２号イ(2)の基準"]
[null,null,null,null,"国土交通大臣が認める方法及びその結果"]
[null,null,null,null,"（",null,null,null,null,null,null,null,null,null,null,null,null,null,null,null,null,null,null,"）"]
[null,null,null,null,"基準省令第１条第１項第２号イただし書の規定による適用除外"]
[null,null,"（一次エネルギー消費量に関する事項）"]
[null,null,null,null,"基準省令第１条第１項第２号ロ⑴の基準"]
[null,null,null,null,"基準一次エネルギー消費量",null,null,null,null,null,null,null,null,null,null,null,null,null,null,null,null,null,null,"GJ/年"]
[null,null,null,null,"設計一次エネルギー消費量",null,null,null,null,null,null,null,null,null,null,null,null,null,null,null,null,null,null,"GJ/年"]
[null,null,null,null,"BEI",null,null,"（",null,null,null,null,"）"]
[null,null,null,null,"基準省令第１条第１項第２号ロ⑵の基準"]
[null,null,null,null,"国土交通大臣が認める方法及びその結果"]
[null,null,null,null,"（",null,null,null,null,null,null,null,null,null,null,null,null,null,null,null,null,null,null,"）"]
[]
[null,null,"【ハ．共同住宅等】"]
[null,null,"（外壁、壁等を通しての熱の損失の防止に関する事項）"]
[null,null,null,null,"基準省令第１条第１項第２号イ⑴の基準"]
[null,null,null,null,"基準省令第１条第１項第２号イ⑵の基準"]
[null,null,null,null,"国土交通大臣が認める方法及びその結果"]
[null,null,null,null,"（",null,null,null,null,null,null,null,null,null,null,null,null,null,null,null,null,null,null,"）"]
[null,null,"（一次エネルギー消費量に関する事項）"]
[null,null,null,null,"基準省令第１条第１項第２号ロ⑴の基準"]
[null,null,null,null,"基準省令第４条第３項に掲げる数値の区分（",null,null,null,null,null,null,null,null,null,null,null,null,null,null,null,null,"第１号",null,null,null,null,"第２号",null,null,null,"）"]
[null,null,null,null,"基準一次エネルギー消費量",null,null,null,null,null,null,null,null,null,null,null,null,null,null,null,null,null,null,"GJ/年"]
[null,null,null,null,"設計一次エネルギー消費量",null,null,null,null,null,null,null,null,null,null,null,null,null,null,null,null,null,null,"GJ/年"]
[null,null,null,null,"BEI",null,null,"（",null,null,null,null,"）"]
[null,null,null,null,"基準省令第１条第１項第２号ロ⑵の基準"]
[null,null,null,null,"国土交通大臣が認める方法及びその結果"]
[null,null,null,null,"（",null,null,null,null,null,null,null,null,null,null,null,null,null,null,null,null,null,null,"）"]
[]
[]
[null,null,"【ニ．複合建築物】"]
[null,null,null,null,"基準省令第１条第１項第３号イの基準"]
[null,null,null,null,"（非住宅部分）"]
[null,null,null,null,null,"（一次エネルギー消費量に関する事項）"]
[null,null,null,null,null,null,null,"基準省令第１条第１項第１号イの基準"]
[null,null,null,null,null,null,null,"基準一次エネルギー消費量",null,null,null,null,null,null,null,null,null,null,null,null,null,null,null,null,null,null,"GJ/年"]
[null,null,null,null,null,null,null,"設計一次エネルギー消費量",null,null,null,null,null,null,null,null,null,null,null,null,null,null,null,null,null,null,"GJ/年"]
[null,null,null,null,null,null,null,"ＢＥＩ",null,null,"（",null,null,null,null,"）"]
[null,null,null,null,null,null,null,"（ＢＥＩの基準値",null,null,null,null,null,null,null,null,null,"）"]
[null,null,null,null,null,null,null,"基準省令第１条第１項第１号ロの基準"]
[null,null,null,null,null,null,null,"ＢＥＩ",null,null,"（",null,null,null,null,"）"]
[null,null,null,null,null,null,null,"（ＢＥＩの基準値",null,null,null,null,null,null,null,null,null,"）"]
[null,null,null,null,null,null,null,"国土交通大臣が認める方法及びその結果"]
[null,null,null,null,null,null,null,"（",null,null,null,null,null,null,null,null,null,null,null,null,null,null,null,null,null,null,"）"]
[null,null,null,null,"（住宅部分）"]
[null,null,null,null,null,"（外壁、壁等を通しての熱の損失の防止に関する事項）"]
[null,null,null,null,null,null,null,"基準省令第１条第１項第２号イ⑴の基準"]
[null,null,null,null,null,null,null,"基準省令第１条第１項第２号イ⑵の基準"]
[null,null,null,null,null,null,null,"国土交通大臣が認める方法及びその結果"]
[null,null,null,null,null,null,null,"（",null,null,null,null,null,null,null,null,null,null,null,null,null,null,null,null,null,null,"）"]
[null,null,null,null,null,"（一次エネルギー消費量に関する事項）"]
[null,null,null,null,null,null,null,"基準省令第１条第１項第２号ロ⑴の基準"]
[null,null,null,null,null,null,null,null,"基準省令第４条第３項に掲げる数値の区分（",null,null,null,null,null,null,null,null,null,null,null,null,null,null,null,null,"第１号",null,null,null,null,"第２号",null,null,null,"）"]
[null,null,null,null,null,null,null,null,null,"基準一次エネルギー消費量",null,null,null,null,null,null,null,null,null,null,null,null,null,null,null,null,null,null,"GJ/年"]
[null,null,null,null,null,null,null,null,null,"設計一次エネルギー消費量",null,null,null,null,null,null,null,null,null,null,null,null,null,null,null,null,null,null,"GJ/年"]
[null,null,null,null,null,null,null,null,null,"ＢＥＩ",null,null,"（",null,null,null,null,"）"]
[null,null,null,null,null,null,null,"基準省令第１条第１項第２号ロ⑵の基準"]
[null,null,null,null,null,null,null,"国土交通大臣が認める方法及びその結果"]
[null,null,null,null,null,null,null,"（",null,null,null,null,null,null,null,null,null,null,null,null,null,null,null,null,null,null,"）"]
[null,null,null,null,"基準省令第１条第１項第３号ロの基準"]
[null,null,null,null,"（複合建築物）"]
[null,null,null,null,null,"（一次エネルギー消費量に関する事項）"]
[null,null,null,null,null,null,"基準省令第４条第３項に掲げる数値の区分（",null,null,null,null,null,null,null,null,null,null,null,null,null,null,null,null,"第１号",null,null,null,null,"第２号",null,null,null,"）"]
[null,null,null,null,null,null,null,"基準一次エネルギー消費量",null,null,null,null,null,null,null,null,null,null,null,null,null,null,null,null,null,null,"GJ/年"]
[null,null,null,null,null,null,null,"設計一次エネルギー消費量",null,null,null,null,null,null,null,null,null,null,null,null,null,null,null,null,null,null,"GJ/年"]
[null,null,null,null,null,null,null,"ＢＥＩ",null,null,"（",null,null,null,null,"）"]
[null,null,null,null,null,null,null,"（ＢＥＩの基準値",null,null,null,null,null,null,null,null,null,"）"]
[null,null,null,null,null,"（住宅部分）"]
[null,null,null,null,null,null,"（外壁、壁等を通しての熱の損失の防止に関する事項）"]
[null,null,null,null,null,null,null,null,"基準省令第１条第１項第２号イ⑴の基準"]
[null,null,null,null,null,null,null,null,"基準省令第１条第１項第２号イ⑵の基準"]
[null,null,null,null,null,null,null,null,"国土交通大臣が認める方法及びその結果"]
[null,null,null,null,null,null,null,null,"（",null,null,null,null,null,null,null,null,null,null,null,null,null,null,null,null,null,null,"）"]
[]
[null,"【5.備考】"]
[]
[]
[]
[]
[]
["（注意）"]
[null,"１．【１．非住宅部分の用途】の欄は、建築基準法施行規則（昭和25年建設省令第40号）別紙の表の用途の区分に従い記入して下さい。"]
[null,"２．【２．建築物の住戸の数】の欄は、第三面の【６．建築物の用途】で「共同住宅等」又は「複合建築物」を選んだ場合のみ記載してください。"]
[null,"３．【3．建築物の床面積】の欄は、第三面の【７．工事種別】の欄の工事種別に応じ、新築等に係る建築物の床面積を記載してください。増築"]
[null,null,"又は改築の場合は、延べ面積を併せて記載してください。「開放部分及び共用部分を除いた部分の床面積」は、第三面の【６．建築物の用途】で"]
[null,null,"「共同住宅等」又は「複合建築物」を選んだ場合のみ記載してください。"]
[null,"４．【３．建築物の床面積】の欄において、「床面積」は、単に建築物の床面積をいい、「開放部分を除いた部分の床面積」は、建築物のエネルギー"]
[null,null,"消費性能の向上等に関する法律施行令（平成28年政令第８号。以下「令」という。）第３条に規定する床面積をいい、「開放部分及び共用部"]
[null,null,"分を除いた部分の床面積」は、同条に規定する階又はその一部及び住宅部分のうち共用部分を除いた部分の面積をいいます。"]
[null,"５．【４．建築物のエネルギー消費性能】の欄は、第三面の【６．建築物の用途】の欄において選択した用途に応じて、イからニまでのいずれかについて、"]
[null,null,"以下の内容に従って記載してください。"]
[null,null,"なお、イからニまでの事項のうち、記載しないものについては削除して構いません。"]
[null,null,"(1)　（外壁、窓等を通しての熱の損失の防止に関する事項）及び（一次エネルギー消費量に関する事項）のそれぞれについて、"]
[null,null,null,"該当するチェックボックスに「✓」マークを入れた上で記載してください。"]
[null,null,"(2)　「外皮平均熱貫流率」及び「冷房期の平均日射熱取得率」については、それぞれの基準値（基準省令第１条第１項第２号イ(1)の表"]
[null,null,null,"に掲げる数値をいう。）と併せて記載してください。"]
[null,null,"(3)　【ハ．共同住宅等】及び【ニ．複合建築物】の（住宅部分）の「基準一次エネルギー消費量」、「設計一次エネルギー消費量」及び"]
[null,null,null,"「ＢＥＩ」については、住宅（複合建築物の場合は住宅部分。以下この(3)において同じ。）全体（住宅の増築又は改築をする場合にあっては、"]
[null,null,null,"当該増築又は改築をする住宅の部分全体）での数値を記載してください。"]
[null,null,"(4)　「基準省令第１条第１項第２号イ(2)の基準」又は「基準省令第１条第１項第２号ロ(2)の基準」を用いる場合は、別紙に詳細を記載してください。"]
[null,null,"(5)　「ＢＥＩ」は、設計一次エネルギー消費量（その他一次エネルギー消費量を除く。）を基準一次エネルギー消費量（その他一次エネルギー消費量を除く。"]
[null,null,null,"以下この(5)及び(6)において同じ。）で除したものをいいます。ただし、非住宅部分の「ＢＥＩ」を算出する場合における当該基準一次エネルギー消費量"]
[null,null,null,"（(5)において「引上げ前の基準一次エネルギー消費量」という。）についての基準省令第３条第１項の規定の適用については、"]
[null,null,null,"同項中「ＥＳＴ＝｛（ＥＳＡＣ＋ＥＳＶ＋ＥＳＬ＋ＥＳＷ＋ＥＳＥＶ）×Ｂ＋ＥＭ｝×10-3」とあるのは、「ＥＳＴ＝（ＥＳＡＣ＋ＥＳＶ＋ＥＳＬ＋ＥＳＷ＋ＥＳＥＶ＋ＥＭ）×10-3」とします。"]
[null,null,null,"「ＢＥＩ」を記載する場合は、小数点第二位未満を切り上げた数値としてください。"]
[null,null,"(6)　「ＢＥＩの基準値」は、基準一次エネルギー消費量を引上げ前の基準一次エネルギー消費量で除したものをいいます。なお、非住宅部分を二以上の用途に供する場合にあっては、"]
[null,null,null,"用途ごとに算出した基準一次エネルギー消費量の合計を、用途ごとに算出した引上げ前の基準一次エネルギー消費量の合計で除したものをいいます。"]
[null,null,null,"「ＢＥＩの基準値」を記載する場合は、小数点第二位未満を切り上げた数値としてください。"]
[null,"６．　第四面は、確認申請等他の制度の申請書の写しに必要事項を補って追加して記載した書面その他の記載すべき事項の全てが明示された別の書面をもって代えることができます。"]

{"sheet":"５面(共同住宅・複合建築物)","index":10,"n_rows":52,"n_cols":33,"rows_kept":52,"cut":false,"hidden":true,"merged":[[38,0,38,33],[22,4,22,31],[30,5,30,9],[35,4,35,31],[2,1,2,7],[13,11,13,15],[13,21,13,25],[18,10,18,14],[18,22,18,26],[19,22,19,26],[19,13,19,17],[10,11,10,15],[10,21,10,25],[11,21,11,25],[12,11,12,15],[12,21,12,25],[28,13,28,18],[29,13,29,18],[11,10,11,14],[0,0,0,37],[4,10,4,14],[8,21,8,31],[9,11,9,15],[9,21,9,25],[8,10,8,14]]}
["(第五面)"]
[]
[null,"[住戸に関する事項]"]
[]
[null,"【1.住戸の番号】"]
[]
[]
[]
[null,"【2.住宅の存する階】",null,null,null,null,null,null,null,null,null,null,null,null,null,"階"]
[]
[]
[null,"【3.専用部分の床面積】",null,null,null,null,null,null,null,null,null,null,null,null,null,"㎡"]
[]
[]
[null,"【4.住戸のエネルギー消費性能】"]
[]
[null,"（外壁、窓等を通しての熱の損失の防止に関する事項）"]
[]
[null,null,null,"外皮平均熱貫流率",null,null,null,null,null,null,null,null,null,null,null,"W/(㎡・K）",null,null,null,"（基準値",null,null,null,null,null,null,null,"W/(㎡・K））"]
[null,null,null,"冷房機の平均日射熱取得率",null,null,null,null,null,null,null,null,null,null,null,null,null,null,null,"（基準値",null,null,null,null,null,null,null,"）"]
[]
[]
[null,null,null,"（",null,null,null,null,null,null,null,null,null,null,null,null,null,null,null,null,null,null,null,null,null,null,null,null,null,null,null,null,"）"]
[]
[]
[null,"（一次エネルギー消費量に関する事項）"]
[]
[]
[null,null,null,"基準一次エネルギー消費量",null,null,null,null,null,null,null,null,null,null,null,null,null,null,null,"GJ/年"]
[null,null,null,"設計一次エネルギー消費量",null,null,null,null,null,null,null,null,null,null,null,null,null,null,null,"GJ/年"]
[null,null,null,"BEI（",null,null,null,null,null,null,"）"]
[]
[]
[]
[]
[null,null,null,"（",null,null,null,null,null,null,null,null,null,null,null,null,null,null,null,null,null,null,null,null,null,null,null,null,null,null,null,null,"）"]
[]
[]
["（注意）"]
[null,"１．第五面は、第三面の【６．建築物の用途】の欄で「共同住宅等」又は「複合建築物」を選択した場合に、住戸ごとに作成してください。"]
[null,"２．住戸の階数が二以上である場合には、【3.専用部分の床面積】に各階ごとの床面積を併せて記載してください。"]
[null,"３．【4．住戸のエネルギー消費性能】の欄は、以下の内容に従って記載してください。"]
[null,null,"(1)（外壁、窓等を通しての熱の損失の防止に関する事項）又は（一次エネルギー消費量に関する事項）のそれぞれについて、"]
[null,null,null,"該当するチェックボックスに「✓」マークを入れた上で記載してください。"]
[null,null,"(2)「外皮平均熱貫流率」及び「冷房期の平均日射熱取得率」については、それぞれの基準値（基準省令第１条第１項第２号イ（１）の表"]
[null,null,null,"に掲げる数値をいう。）と併せて記載してください。"]
[null,null,"(3)「基準省令第１条第１項第２号イ⑵の基準」又は「基準省令第１条第１項第２号ロ⑵の基準」を用いる場合は、"]
[null,null,null,"別紙に詳細を記載してください。"]
[null,null,"(4)「ＢＥＩ」は、設計一次エネルギー消費量（その他一次エネルギー消費量を除く。）を基準一次エネルギー消費量（その他一次エネルギー"]
[null,null,null,"消費量を除く。）で除したものをいいます。「ＢＥＩ」を記載する場合は、小数点第二位未満を切り上げた数値としてください。"]
[null,"４. 第五面は、確認申請等他の制度の申請書の写しに必要事項を補うこと、複数の住戸に関する情報を集約して記載すること等により記載"]
[null,"　  すべき事項の全てが明示された別の書面をもって代えることができます。"]

{"sheet":"4面集約版","index":11,"n_rows":71,"n_cols":27,"rows_kept":71,"cut":false,"hidden":false,"merged":[[4,1,4,2],[2,1,2,2],[2,4,2,26],[3,1,3,2],[3,4,3,7],[3,9,3,10],[5,6,5,12],[5,13,6,19],[5,20,6,27],[7,7,7,10],[7,11,7,12],[7,14,7,17],[7,18,7,19],[7,21,7,24],[7,25,7,26],[8,25,8,26],[9,3,9,5],[9,7,9,10],[9,11,9,12],[9,14,9,17],[9,18,9,19],[9,21,9,24],[9,25,9,26],[8,3,8,5],[8,7,8,10],[8,11,8,12],[8,14,8,17],[8,18,8,19],[8,21,8,24],[10,25,10,26],[11,3,11,5],[11,7,11,10],[11,11,11,12],[11,14,11,17],[11,18,11,19],[11,21,11,24],[11,25,11,26],[10,3,10,5],[10,7,10,10],[10,11,10,12],[10,14,10,17],[10,18,10,19],[10,21,10,24],[26,10,26,25],[12,1,13,2],[13,5,13,11],[15,10,15,25],[16,11,16,25],[18,5,18,20],[19,10,19,25],[20,11,20,25],[21,5,21,20],[22,10,22,25],[23,11,23,25],[24,23,24,25],[30,25,30,26],[27,4,27,26],[28,4,28,9],[28,10,28,14],[28,15,28,19],[28,20,28,24],[28,25,29,26],[29,4,29,6],[29,7,29,8],[29,10,29,14],[29,15,29,19],[29,20,29,24],[30,4,30,9],[30,10,30,14],[30,15,30,19],[30,20,30,24],[35,4,35,26],[31,4,31,9],[31,10,31,14],[31,15,31,19],[31,20,31,24],[31,25,31,26],[32,4,32,9],[32,10,32,14],[32,15,32,19],[32,20,32,24],[32,25,32,26],[33,4,33,9],[33,10,33,14],[33,15,33,19],[33,20,33,24],[33,25,33,26],[39,19,39,20],[39,22,39,23],[42,0,42,33],[36,4,36,9],[36,11,36,13],[37,4,37,9],[37,16,37,17],[37,24,37,25],[38,4,39,9],[38,16,38,17],[38,19,38,20],[38,22,38,23],[39,16,39,17]]}
[]
[null,"建築物に関する事項（集約版）（参考様式）"]
[null,"【１．非住宅部分の用途】"]
[null,"【２．建築物の住戸の数】",null,null,"建築物全体",null,null,null,null,null,null,"戸"]
[null,"【３．建築物の床面積】"]
[null,null,null,null,null,null,"（　床面積　）",null,null,null,null,null,null,"（開放部分を除いた\n部分の床面積）",null,null,null,null,null,null,"（開放部分及び共用部分を除いた部分の床面積）"]
[]
[null,null,"【イ．新築】",null,null,null,"（",null,null,null,null,"㎡）",null,"（",null,null,null,null,"㎡）",null,"（",null,null,null,null,"㎡）"]
[null,null,"【ロ．増築】","全体",null,null,"（",null,null,null,null,"㎡）",null,"（",null,null,null,null,"㎡）",null,"（",null,null,null,null,"㎡）"]
[null,null,null,"増築部分",null,null,"（",null,null,null,null,"㎡）",null,"（",null,null,null,null,"㎡）",null,"（",null,null,null,null,"㎡）"]
[null,null,"【ハ．改築】","全体",null,null,"（",null,null,null,null,"㎡）",null,"（",null,null,null,null,"㎡）",null,"（",null,null,null,null,"㎡）"]
[null,null,null,"改築部分",null,null,"（",null,null,null,null,"㎡）",null,"（",null,null,null,null,"㎡）",null,"（",null,null,null,null,"㎡）"]
[null,"【４．建築物のエネルギー\n　　　　　　　消費性能】",null,"（建築物の種類）"]
[null,null,null,null,null,"【ニ．複合建築物】"]
[null,null,null,"（適用した基準）"]
[null,null,null,null,null,"・非住宅部分"]
[null,null,null,null,null,null,null,null,null,null,"（",null,null,null,null,null,null,null,null,null,null,null,null,null,null,null,"）"]
[null,null,null,null,null,"・住宅部分"]
[null,null,null,null,null,"（外壁、壁等を通しての熱の損失の防止に関する事項）"]
[]
[null,null,null,null,null,null,null,null,null,null,"（",null,null,null,null,null,null,null,null,null,null,null,null,null,null,null,"）"]
[null,null,null,null,null,"（一次エネルギー消費量に関する事項）"]
[]
[null,null,null,null,null,null,null,null,null,null,"（",null,null,null,null,null,null,null,null,null,null,null,null,null,null,null,"）"]
[null,null,null,null,null,null,null,null,null,"・基準省令第４条第３項に掲げる数値の区分",null,null,null,null,null,null,null,null,null,null,null,null,"（",null,null,null,"）"]
[]
[null,null,null,null,null,"・複合建築物"]
[null,null,null,null,"一次エネルギー消費量集計表"]
[null,null,null,null,"非住宅部分のBEI",null,null,null,null,null,"設計一次エネ",null,null,null,null,"基準一次エネ",null,null,null,null,"その他エネ消費",null,null,null,null,"BEI"]
[null,null,null,null,"基準値（",null,null,null,null,"）","(その他含)[GJ/年]",null,null,null,null,"(その他含)[GJ/年]",null,null,null,null,"[GJ/年]"]
[null,null,null,null,"①　住戸部分合計",null,null,null,null,null,null,null,null,null,null,null,null,null,null,null,null,null,null,null,null,{"$f":"IF(K31=\"\",\"\",ROUNDUP((K31-U31)/(P31-U31),1))","v":""}]
[null,null,null,null,"②　住宅共用部",null,null,null,null,null,null,null,null,null,null,null,null,null,null,null,null,null,null,null,null,{"$f":"IF(K32=\"\",\"\",ROUNDUP((K32-U32)/(P32-U32),1))","v":""}]
[null,null,null,null,"③　非住宅部分",null,null,null,null,null,null,null,null,null,null,null,null,null,null,null,null,null,null,null,null,""]
[null,null,null,null,"合計（①～③）",null,null,null,null,null,{"$f":"SUM(K31:O33)","v":0},null,null,null,null,{"$f":"SUM(P31:T33)","v":0},null,null,null,null,{"$f":"SUM(U31:Y33)","v":0},null,null,null,null,{"$f":"IF(K34=0,\"\",ROUNDUP((K34-U34)/(P34-U34),1))","v":""}]
[]
[null,null,null,null,"外皮性能集計表"]
[null,null,null,null,"外皮基準適合戸数",null,null,null,null,null,null,null,null,null,"戸"]
[null,null,null,null,"外皮基準値",null,null,null,null,null,null,"基準UA値",null,null,null,"（",null,null,"）","基準ηAC値",null,null,null,"（",null,null,"）"]
[null,null,null,null,"外皮設計値",null,null,null,null,null,null,"設計UA値",null,null,null,"（",null,null,"）","～",null,"（",null,null,"）"]
[null,null,null,null,null,null,null,null,null,null,null,"基準ηAC値",null,null,null,"（",null,null,"）","～",null,"（",null,null,"）"]
[]
[]
["（注意）"]
[null,"１．【１．非住宅部分の用途】の欄は、建築基準法施行規則（昭和25年建設省令第40号）別紙の表の用途の区分に従い記入して下さい。"]
[null,"２．【２．建築物の住戸の数】の欄は、第三面の【６．建築物の用途】で「共同住宅等」又は「複合建築物」を選んだ場合のみ記載してください。"]
[null,"３．【3．建築物の床面積】の欄は、第三面の【７．工事種別】の欄の工事種別に応じ、新築等に係る建築物の床面積を記載してください。増築"]
[null,null,"又は改築の場合は、延べ面積を併せて記載してください。「開放部分及び共用部分を除いた部分の床面積」は、第三面の【６．建築物の用途】で"]
[null,null,"「共同住宅等」又は「複合建築物」を選んだ場合のみ記載してください。"]
[null,"４．【３．建築物の床面積】の欄において、「床面積」は、単に建築物の床面積をいい、「開放部分を除いた部分の床面積」は、建築物のエネルギー"]
[null,null,"消費性能の向上等に関する法律施行令（平成28年政令第８号。以下「令」という。）第３条に規定する床面積をいい、「開放部分及び共用部"]
[null,null,"分を除いた部分の床面積」は、同条に規定する階又はその一部及び住宅部分のうち共用部分を除いた部分の面積をいいます。"]
[null,"５．【４．建築物のエネルギー消費性能】の欄は、第三面の【６．建築物の用途】の欄において選択した用途に応じて、イからニまでのいずれかについて、"]
[null,null,"以下の内容に従って記載してください。"]
[null,null,"なお、イからニまでの事項のうち、記載しないものについては削除して構いません。"]
[null,null,"(1)　（外壁、窓等を通しての熱の損失の防止に関する事項）及び（一次エネルギー消費量に関する事項）のそれぞれについて、"]
[null,null,null,"該当する基準をプルダウンから選択してください。"]
[null,null,"(2)　「外皮平均熱貫流率」及び「冷房期の平均日射熱取得率」については、それぞれの基準値（基準省令第１条第１項第２号イ(1)の表"]
[null,null,null,"に掲げる数値をいう。）と併せて記載してください。"]
[null,null,"(3)　【ハ．共同住宅等】及び【ニ．複合建築物】の（住宅部分）の「基準一次エネルギー消費量」、「設計一次エネルギー消費量」及び"]
[null,null,null,"「ＢＥＩ」については、住宅（複合建築物の場合は住宅部分。以下この(3)において同じ。）全体（住宅の増築又は改築をする場合にあっては、"]
[null,null,null,"当該増築又は改築をする住宅の部分全体）での数値を記載してください。"]
[null,null,"(4)　「基準省令第１条第１項第２号イ(2)の基準」又は「基準省令第１条第１項第２号ロ(2)の基準」を用いる場合は、別紙に詳細を記載してください。"]
[null,null,"(5)　「ＢＥＩ」は、設計一次エネルギー消費量（その他一次エネルギー消費量を除く。）を基準一次エネルギー消費量（その他一次エネルギー消費量を除く。"]
[null,null,null,"以下この(5)及び(6)において同じ。）で除したものをいいます。ただし、非住宅部分の「ＢＥＩ」を算出する場合における当該基準一次エネルギー消費量"]
[null,null,null,"（(5)において「引上げ前の基準一次エネルギー消費量」という。）についての基準省令第３条第１項の規定の適用については、"]
[null,null,null,"同項中「ＥＳＴ＝｛（ＥＳＡＣ＋ＥＳＶ＋ＥＳＬ＋ＥＳＷ＋ＥＳＥＶ）×Ｂ＋ＥＭ｝×10-3」とあるのは、「ＥＳＴ＝（ＥＳＡＣ＋ＥＳＶ＋ＥＳＬ＋ＥＳＷ＋ＥＳＥＶ＋ＥＭ）×10-3」とします。"]
[null,null,null,"「ＢＥＩ」を記載する場合は、小数点第二位未満を切り上げた数値としてください。"]
[null,null,"(6)　「ＢＥＩの基準値」は、基準一次エネルギー消費量を引上げ前の基準一次エネルギー消費量で除したものをいいます。なお、非住宅部分を二以上の用途に供する場合にあっては、"]
[null,null,null,"用途ごとに算出した基準一次エネルギー消費量の合計を、用途ごとに算出した引上げ前の基準一次エネルギー消費量の合計で除したものをいいます。"]
[null,null,null,"「ＢＥＩの基準値」を記載する場合は、小数点第二位未満を切り上げた数値としてください。"]
[null,"６．　第四面は、確認申請等他の制度の申請書の写しに必要事項を補って追加して記載した書面その他の記載すべき事項の全てが明示された別の書面をもって代えることができます。"]

{"sheet":"5面集約版（共同住宅等）","index":12,"n_rows":62,"n_cols":14,"rows_kept":62,"cut":false,"hidden":false,"merged":[[48,0,48,34],[3,1,6,1],[3,2,6,2],[3,3,6,3],[3,4,5,4],[3,5,5,5],[3,6,3,13],[4,6,4,8],[4,9,4,13],[5,13,6,13]]}
[]
[null,"住戸に関する事項（共同住宅等集約版）（参考様式）"]
[null,"①　住戸部分（標準計算）"]
[null,"\n\nNo","\n\nタイプ名","\n\n【1.住戸の番号】","\n\n【2.住戸の存する階】","\n\n【3.専用部分の床面積】","【4.住戸のエネルギー消費性能】"]
[null,null,null,null,null,null,"（外壁、窓等通しての熱の損失の防止に関する事項）",null,null,"（一次エネルギー消費量に関する事項）"]
[null,null,null,null,null,null,"基準","外皮平均\n熱貫流率","冷房期の平均日射熱取得率\n","基準","設計一次\nエネルギー\n消費量\n(その他含)","基準一次\nエネルギー\n消費量\n(その他含)","その他一次\nエネルギー\n消費量","BEI"]
[null,null,null,null,"[階]","[㎡]",null,"[W/㎡・K]","[－]",null,"[GJ/年]","[GJ/年]","[GJ/年]"]
[null,1,null,null,null,null,null,null,null,null,null,null,null,{"$f":"IF(K8=\"\",\"\",ROUNDUP(((K8-M8)/(L8-M8)),1))","v":""}]
[null,2,null,null,null,null,null,null,null,null,null,null,null,{"$f":"IF(K9=\"\",\"\",ROUNDUP(((K9-M9)/(L9-M9)),1))","v":""}]
[null,3,null,null,null,null,null,null,null,null,null,null,null,{"$f":"IF(K10=\"\",\"\",ROUNDUP(((K10-M10)/(L10-M10)),1))","v":""}]
[null,4,null,null,null,null,null,null,null,null,null,null,null,{"$f":"IF(K11=\"\",\"\",ROUNDUP(((K11-M11)/(L11-M11)),1))","v":""}]
[null,5,null,null,null,null,null,null,null,null,null,null,null,""]
[null,6,null,null,null,null,null,null,null,null,null,null,null,""]
[null,7,null,null,null,null,null,null,null,null,null,null,null,{"$f":"IF(K14=\"\",\"\",ROUNDUP(((K14-M14)/(L14-M14)),1))","v":""}]
[null,8,null,null,null,null,null,null,null,null,null,null,null,""]
[null,9,null,null,null,null,null,null,null,null,null,null,null,""]
[null,10,null,null,null,null,null,null,null,null,null,null,null,""]
[null,11,null,null,null,null,null,null,null,null,null,null,null,""]
[null,12,null,null,null,null,null,null,null,null,null,null,null,""]
[null,13,null,null,null,null,null,null,null,null,null,null,null,""]
[null,14,null,null,null,null,null,null,null,null,null,null,null,""]
[null,15,null,null,null,null,null,null,null,null,null,null,null,""]
[null,16,null,null,null,null,null,null,null,null,null,null,null,""]
[null,17,null,null,null,null,null,null,null,null,null,null,null,""]
[null,18,null,null,null,null,null,null,null,null,null,null,null,""]
[null,19,null,null,null,null,null,null,null,null,null,null,null,""]
[null,20,null,null,null,null,null,null,null,null,null,null,null,""]
[null,21,null,null,null,null,null,null,null,null,null,null,null,""]
[null,22,null,null,null,null,null,null,null,null,null,null,null,""]
[null,23,null,null,null,null,null,null,null,null,null,null,null,""]
[null,24,null,null,null,null,null,null,null,null,null,null,null,""]
[null,25,null,null,null,null,null,null,null,null,null,null,null,""]
[null,26,null,null,null,null,null,null,null,null,null,null,null,""]
[null,27,null,null,null,null,null,null,null,null,null,null,null,""]
[null,28,null,null,null,null,null,null,null,null,null,null,null,""]
[null,29,null,null,null,null,null,null,null,null,null,null,null,""]
[null,30,null,null,null,null,null,null,null,null,null,null,null,""]
[null,31,null,null,null,null,null,null,null,null,null,null,null,""]
[null,32,null,null,null,null,null,null,null,null,null,null,null,""]
[null,33,null,null,null,null,null,null,null,null,null,null,null,""]
[null,34,null,null,null,null,null,null,null,null,null,null,null,""]
[null,35,null,null,null,null,null,null,null,null,null,null,null,""]
[null,36,null,null,null,null,null,null,null,null,null,null,null,""]
[null,37,null,null,null,null,null,null,null,null,null,null,null,""]
[null,38,null,null,null,null,null,null,null,null,null,null,null,""]
[null,39,null,null,null,null,null,null,null,null,null,null,null,""]
[null,40,null,null,null,null,null,null,null,null,null,null,null,""]
[]
["（注意）"]
[null,"１．第五面は、第三面の【６．建築物の用途】の欄で「共同住宅等」又は「複合建築物」を選択した場合に、住戸ごとに作成してください。"]
[null,"２．住戸の階数が二以上である場合には、【3.専用部分の床面積】に各階ごとの床面積を併せて記載してください。"]
[null,"３．【4．住戸のエネルギー消費性能】の欄は、以下の内容に従って記載してください。"]
[null,null,"(1)（外壁、窓等を通しての熱の損失の防止に関する事項）又は（一次エネルギー消費量に関する事項）のそれぞれについて、"]
[null,null,null,"該当するチェックボックスに「✓」マークを入れた上で記載してください。"]
[null,null,"(2)「外皮平均熱貫流率」及び「冷房期の平均日射熱取得率」については、それぞれの基準値（基準省令第１条第１項第２号イ（１）の表"]
[null,null,null,"に掲げる数値をいう。）と併せて記載してください。"]
[null,null,"(3)「基準省令第１条第１項第２号イ⑵の基準」又は「基準省令第１条第１項第２号ロ⑵の基準」を用いる場合は、"]
[null,null,null,"別紙に詳細を記載してください。"]
[null,null,"(4)「ＢＥＩ」は、設計一次エネルギー消費量（その他一次エネルギー消費量を除く。）を基準一次エネルギー消費量（その他一次エネルギー"]
[null,null,null,"消費量を除く。）で除したものをいいます。「ＢＥＩ」を記載する場合は、小数点第二位未満を切り上げた数値としてください。"]
[null,"４. 第五面は、確認申請等他の制度の申請書の写しに必要事項を補うこと、複数の住戸に関する情報を集約して記載すること等により記載"]
[null,"　  すべき事項の全てが明示された別の書面をもって代えることができます。"]

{"sheet":"puldwn","index":13,"n_rows":5,"n_cols":7,"rows_kept":5,"cut":false,"hidden":true,"merged":[]}
["建物種別","計算１","計算２","計算３","計算４","計算5","計算6"]
["【イ．非住宅建築物】","基準省令第１条第１項第１号イの基準（標準入力法）","基準省令第１条第１項第２号イ(1)の基準（標準計算）","基準省令第１条第１項第２号ロ(1)の基準（標準計算）","第1号","基準省令第１条第１項第3号イの基準","標準計算"]
["【ロ．一戸建ての住宅】","基準省令第１条第１項第１号ロの基準（モデル建物法）","基準省令第１条第１項第２号イ(2)の基準（仕様基準）","基準省令第１条第１項第２号ロ(2)の基準（仕様基準）","第2号","基準省令第１条第１項第3号ロの基準","仕様基準"]
["【ハ．共同住宅等】","国土交通大臣が認める方法及びその結果","国土交通大臣が認める方法及びその結果","国土交通大臣が認める方法及びその結果",null,null,"誘導仕様基準"]
["【ニ．複合建築物】",null,"基準省令第１条第１項第２号イただし書の規定による適用除外"]

{"sheet":"fmex_agg","index":14,"n_rows":3,"n_cols":50,"rows_kept":3,"cut":false,"hidden":true,"merged":[]}
["四面_用途_非住宅","四面_戸数_住宅","四面_床面積_新築","四面_床面積_新築_開放部分除く","四面_床面積_新築_開放部分と共用部除く","四面_床面積_増築_全体","四面_床面積_増築_全体_開放部分除く","四面_床面積_増築_全体_開放部分除と共用部除く","四面_床面積_増築_増築部","四面_床面積_増築_増築部_開放部分除く","四面_床面積_増築_増築部_開放部分と共用部除く","四面_床面積_改築_全体","四面_床面積_改築_全体_開放部分除く","四面_床面積_改築_全体_開放部分と共用部除く","四面_床面積_改築部","四面_床面積_改築_改築部_開放部分除く","四面_床面積_改築_改築部_開放部分と共用部除く","三面_建築物_用途","四面_計算方法_非住宅","四面_計算方法_備考_非住宅","四面_計算方法_住宅_外皮","四面_計算方法_備考_住宅_外皮","四面_計算方法_住宅_一次エネ","四面_計算方法_備考_住宅_一次エネ","四面_計算方法_住宅_一次エネ_区分","四面_基準BEI_非住宅","四面_設計一次エネ_住宅","四面_基準一次エネ_住宅","四面_その他エネ_住宅","四面_設計BEI_住宅","四面_設計一次エネ_住宅_共用部","四面_基準一次エネ_住宅_共用部","四面_その他エネ_住宅_共用部","四面_設計BEI_住宅_共用部","四面_設計一次エネ_非住宅","四面_基準一次エネ_非住宅","四面_その他エネ_非住宅","四面_設計BEI_非住宅","四面_設計一次エネ_合計","四面_基準一次エネ_合計","四面_その他エネ_合計","四面_設計BEI_合計","四面_戸数_外皮適合","四面_基準U","四面_基準η","四面_設計U","四面_設計U_Max","四面_設計η","四面_設計η_Max","四面_計算方法_複合建築物_一次エネ"]
[{"$f":"'4面集約版'!#REF!","v":{"$error":"#REF!"}},{"$f":"'4面集約版'!J4","v":0},{"$f":"'4面集約版'!H8","v":0},{"$f":"'4面集約版'!O8","v":0},{"$f":"'4面集約版'!V8","v":0},{"$f":"'4面集約版'!H9","v":0},{"$f":"'4面集約版'!O9","v":0},{"$f":"'4面集約版'!V9","v":0},{"$f":"'4面集約版'!H10","v":0},{"$f":"'4面集約版'!O10","v":0},{"$f":"'4面集約版'!V10","v":0},{"$f":"'4面集約版'!H11","v":0},{"$f":"'4面集約版'!O11","v":0},{"$f":"'4面集約版'!V11","v":0},{"$f":"'4面集約版'!H12","v":0},{"$f":"'4面集約版'!O12","v":0},{"$f":"'4面集約版'!V12","v":0},{"$f":"'4面集約版'!F14","v":"【ニ．複合建築物】"},{"$f":"'4面集約版'!K16","v":0},{"$f":"'4面集約版'!L17","v":0},{"$f":"'4面集約版'!K20","v":0},{"$f":"'4面集約版'!L21","v":0},{"$f":"'4面集約版'!K23","v":0},{"$f":"'4面集約版'!L24","v":0},{"$f":"'4面集約版'!X25","v":0},{"$f":"'4面集約版'!H30","v":0},{"$f":"'4面集約版'!K31","v":0},{"$f":"'4面集約版'!P31","v":0},{"$f":"'4面集約版'!U31","v":0},{"$f":"'4面集約版'!Z31","v":""},{"$f":"'4面集約版'!K32","v":0},{"$f":"'4面集約版'!P32","v":0},{"$f":"'4面集約版'!U32","v":0},{"$f":"'4面集約版'!Z32","v":""},{"$f":"'4面集約版'!K33","v":0},{"$f":"'4面集約版'!P33","v":0},{"$f":"'4面集約版'!U33","v":0},{"$f":"'4面集約版'!Z33","v":""},{"$f":"'4面集約版'!K34","v":0},{"$f":"'4面集約版'!P34","v":0},{"$f":"'4面集約版'!U34","v":0},{"$f":"'4面集約版'!Z34","v":""},{"$f":"'4面集約版'!L37","v":0},{"$f":"'4面集約版'!Q38","v":0},{"$f":"'4面集約版'!Y38","v":0},{"$f":"'4面集約版'!Q39","v":0},{"$f":"'4面集約版'!W39","v":0},{"$f":"'4面集約版'!Q40","v":0},{"$f":"'4面集約版'!W40","v":0},{"$f":"'4面集約版'!O14","v":0}]
[null,null,null,null,null,null,null,null,null,null,null,null,null,null,null,null,null,null,null,null,null,null,null,null,null,null,null,null,null,{"$f":"'4面集約版'!Z32","v":""}]

{"sheet":"fmex_d2d","index":15,"n_rows":2,"n_cols":11,"rows_kept":2,"cut":false,"hidden":true,"merged":[]}
["住戸_連番","住戸_タイプ名","住戸_住戸番号","住戸_存する階","住戸_床面積","住戸_設計U","住戸_設計η","住戸_設計一次エネ","住戸_基準一次エネ","住戸_その他エネ","住戸_設計BEI"]
[{"$f":"'5面集約版（共同住宅等）'!B8","v":1},{"$f":"'5面集約版（共同住宅等）'!C8","v":0},{"$f":"'5面集約版（共同住宅等）'!D8","v":0},{"$f":"'5面集約版（共同住宅等）'!E8","v":0},{"$f":"'5面集約版（共同住宅等）'!F8","v":0},{"$f":"'5面集約版（共同住宅等）'!H8","v":0},{"$f":"'5面集約版（共同住宅等）'!I8","v":0},{"$f":"'5面集約版（共同住宅等）'!K8","v":0},{"$f":"'5面集約版（共同住宅等）'!L8","v":0},{"$f":"'5面集約版（共同住宅等）'!M8","v":0},{"$f":"'5面集約版（共同住宅等）'!N8","v":""}]

{"sheet":"別紙（住戸の仕様基準を用いる場合","index":16,"n_rows":87,"n_cols":37,"rows_kept":87,"cut":false,"hidden":false,"merged":[[0,0,0,37],[17,17,17,19],[17,30,17,32],[22,30,22,32],[26,17,26,19],[26,30,26,32],[62,0,62,33],[7,17,7,19],[7,30,7,32],[11,17,11,19],[11,30,11,32],[33,28,33,30],[38,21,38,23],[22,17,22,19],[48,11,48,35],[29,17,29,19],[29,30,29,32],[31,17,31,19],[39,21,39,23],[42,11,42,35],[43,11,43,35],[45,11,45,35],[54,11,54,35],[57,2,59,36],[46,11,46,35],[32,28,32,30],[49,11,49,35],[51,11,51,35],[53,11,53,35]]}
["（別紙）基準省令第１条第１項第２号イ⑵の基準又は基準省令第１条第１項第２号ロ⑵の基準を用いる場合"]
[]
[null,"１．住戸に係る事項"]
[null,"（1）外壁、窓等を通しての熱の損失の防止のための措置"]
[null,null,"1）屋根又は天井"]
[null,null,null,"【断熱材の施工法】",null,null,null,null,null,null,null,null,null,"内断熱",null,null,null,null,null,null,null,"外断熱",null,null,null,null,null,null,null,"両面断熱"]
[null,null,null,null,null,null,null,null,null,null,null,null,null,"充填断熱",null,null,null,null,null,null,null,"外張断熱",null,null,null,null,null,null,null,"内張断熱"]
[null,null,null,"【断熱性能】",null,null,null,null,null,null,null,null,null,"熱貫流率（",null,null,null,null,null,null,"W/(m2・K)）",null,null,null,null,null,"熱抵抗値（",null,null,null,null,null,null,"(m2・K)/W）"]
[null,null,"2）壁"]
[null,null,null,"【断熱材の施工法】",null,null,null,null,null,null,null,null,null,"内断熱",null,null,null,null,null,null,null,"外断熱",null,null,null,null,null,null,null,"両面断熱"]
[null,null,null,null,null,null,null,null,null,null,null,null,null,"充填断熱",null,null,null,null,null,null,null,"外張断熱",null,null,null,null,null,null,null,"内張断熱"]
[null,null,null,"【断熱性能】",null,null,null,null,null,null,null,null,null,"熱貫流率（",null,null,null,null,null,null,"W/(m2・K)）",null,null,null,null,null,"熱抵抗値（",null,null,null,null,null,null,"(m2・K)/W）"]
[null,null,"3）床"]
[null,null,null,"（イ）外気に接する部分"]
[null,null,null,null,"【該当箇所の有無】",null,null,null,null,null,null,null,null,"有",null,null,null,null,null,null,null,"無"]
[null,null,null,null,"【断熱材の施工法】",null,null,null,null,null,null,null,null,"内断熱",null,null,null,null,null,null,null,"外断熱",null,null,null,null,null,null,null,"両面断熱"]
[null,null,null,null,null,null,null,null,null,null,null,null,null,"充填断熱",null,null,null,null,null,null,null,"外張断熱",null,null,null,null,null,null,null,"内張断熱"]
[null,null,null,null,"【断熱性能】",null,null,null,null,null,null,null,null,"熱貫流率（",null,null,null,null,null,null,"W/(m2・K)）",null,null,null,null,null,"熱抵抗値（",null,null,null,null,null,null,"(m2・K)/W）"]
[null,null,null,"（ロ）その他の部分"]
[null,null,null,null,"【該当箇所の有無】",null,null,null,null,null,null,null,null,"有",null,null,null,null,null,null,null,"無"]
[null,null,null,null,"【断熱材の施工法】",null,null,null,null,null,null,null,null,"内断熱",null,null,null,null,null,null,null,"外断熱",null,null,null,null,null,null,null,"両面断熱"]
[null,null,null,null,null,null,null,null,null,null,null,null,null,"充填断熱",null,null,null,null,null,null,null,"外張断熱",null,null,null,null,null,null,null,"内張断熱"]
[null,null,null,null,"【断熱性能】",null,null,null,null,null,null,null,null,"熱貫流率（",null,null,null,null,null,null,"W/(m2・K)）",null,null,null,null,null,"熱抵抗値（",null,null,null,null,null,null,"(m2・K)/W）"]
[null,null,"4）土間床等の外周部分の基礎"]
[null,null,null,"（イ）外気に接する部分"]
[null,null,null,null,"【該当箇所の有無】",null,null,null,null,null,null,null,null,"有",null,null,null,null,null,null,null,"無"]
[null,null,null,null,"【断熱性能】",null,null,null,null,null,null,null,null,"熱貫流率（",null,null,null,null,null,null,"W/(m2・K)）",null,null,null,null,null,"熱抵抗値（",null,null,null,null,null,null,"(m2・K)/W）"]
[null,null,null,"（ロ）その他の部分"]
[null,null,null,null,"【該当箇所の有無】",null,null,null,null,null,null,null,null,"有",null,null,null,null,null,null,null,"無"]
[null,null,null,null,"【断熱性能】",null,null,null,null,null,null,null,null,"熱貫流率（",null,null,null,null,null,null,"W/(m2・K)）",null,null,null,null,null,"熱抵抗値（",null,null,null,null,null,null,"(m2・K)/W）"]
[null,null,"5）開口部"]
[null,null,null,"【断熱性能】",null,null,null,null,null,null,null,null,null,"熱貫流率（",null,null,null,null,null,null,"W/(m2・K)）"]
[null,null,null,"【日射遮蔽性能】",null,null,null,null,null,null,null,null,null,"開口部の日射熱取得率",null,null,null,null,null,null,null,null,"（日射熱取得率",null,null,null,null,null,null,null,null,"）"]
[null,null,null,null,null,null,null,null,null,null,null,null,null,"ガラスの日射熱取得率",null,null,null,null,null,null,null,null,"（日射熱取得率",null,null,null,null,null,null,null,null,"）"]
[null,null,null,null,null,null,null,null,null,null,null,null,null,"付属部材"]
[null,null,null,null,null,null,null,null,null,null,null,null,null,"ひさし、軒等"]
[null,null,"6）構造熱橋部"]
[null,null,null,"【該当箇所の有無】",null,null,null,null,null,null,null,null,null,"有",null,null,null,null,null,null,null,"無"]
[null,null,null,"【断熱性能】",null,null,null,null,null,null,null,null,"断熱補強の範囲",null,null,null,null,null,null,null,"（",null,null,null,"mm",null,"）"]
[null,null,null,null,null,null,null,null,null,null,null,null,"断熱補強の熱抵抗値",null,null,null,null,null,null,null,"（",null,null,null,"(m2・K)/W）"]
[]
[null,"（2）一次エネルギー消費量に関する措置"]
[null,null,null,"【暖房】",null,null,"暖房設備",null,null,null,"（",null,null,null,null,null,null,null,null,null,null,null,null,null,null,null,null,null,null,null,null,null,null,null,null,null,"）"]
[null,null,null,null,null,null,"効率",null,null,null,"（",null,null,null,null,null,null,null,null,null,null,null,null,null,null,null,null,null,null,null,null,null,null,null,null,null,"）"]
[]
[null,null,null,"【冷房】",null,null,"冷房設備",null,null,null,"（",null,null,null,null,null,null,null,null,null,null,null,null,null,null,null,null,null,null,null,null,null,null,null,null,null,"）"]
[null,null,null,null,null,null,"効率",null,null,null,"（",null,null,null,null,null,null,null,null,null,null,null,null,null,null,null,null,null,null,null,null,null,null,null,null,null,"）"]
[]
[null,null,null,"【換気】",null,null,"換気設備",null,null,null,"（",null,null,null,null,null,null,null,null,null,null,null,null,null,null,null,null,null,null,null,null,null,null,null,null,null,"）"]
[null,null,null,null,null,null,"効率",null,null,null,"（",null,null,null,null,null,null,null,null,null,null,null,null,null,null,null,null,null,null,null,null,null,null,null,null,null,"）"]
[]
[null,null,null,"【照明】",null,null,"照明設備",null,null,null,"（",null,null,null,null,null,null,null,null,null,null,null,null,null,null,null,null,null,null,null,null,null,null,null,null,null,"）"]
[]
[null,null,null,"【給湯】",null,null,"給湯設備",null,null,null,"（",null,null,null,null,null,null,null,null,null,null,null,null,null,null,null,null,null,null,null,null,null,null,null,null,null,"）"]
[null,null,null,null,null,null,"効率",null,null,null,"（",null,null,null,null,null,null,null,null,null,null,null,null,null,null,null,null,null,null,null,null,null,null,null,null,null,"）"]
[]
[null,"２．備考"]
[]
[]
[]
[]
[]
["（注意）"]
[null,"１．１欄は、共同住宅等又は複合建築物については、その住戸に係る措置について、住戸ごとに記入してください。なお、計画に係る"]
[null,null,"住戸の数が二以上である場合は、当該各住戸に関して記載すべき事項の全てが明示された別の書面をもって代えることが"]
[null,null,"できます。共同住宅等又は複合建築物の増築又は改築については、１欄の措置のうち、記載しないものについては削除して構いません。"]
[null,"２．１欄の（１）の１）から３）までにおける「断熱材の施工法」は、部位ごとに断熱材の施工法を複数用いている場合"]
[null,null,"は、主たる施工法のチェックボックスに「✔」マークを入れてください。なお、主たる施工法以外の施工法について、主たる施工法"]
[null,null,"に準じて、別紙のうち当該部位に係る事項を記入したものを添えることを妨げるものではありません。"]
[null,"３．１欄の（１）の１）から４）までにおける「断熱性能」は、「熱貫流率」又は「熱抵抗値」のうち、"]
[null,null,"該当するチェックボックスに「✔」マークを入れ、併せて必要な事項を記入してください。"]
[null,"４．１欄の（１）の３）及び４）における（イ）及び（ロ）の「該当箇所の有無」は、該当箇所がある場合には「有」"]
[null,null,"のチェックボックスに、「✔」マークを入れてください。"]
[null,"５．１欄の（１）の５）は、開口部のうち主たるものを対象として、必要な事項を記入してください。"]
[null,"６．１欄の（１）の５）の「日射遮蔽性能」は、「開口部の日射熱取得率」、「ガラスの日射熱取得率」、「付属部材」又は"]
[null,null,"「ひさし、軒等」について該当するチェックボックスに「✔」マークを入れ、必要な事項を記入してください。地域の区分のうち８の地域に存する複合建築物"]
[null,null,"に係る「日射遮蔽性能」については、北±22.5度以外の方位に設置する開口部について記載してください。"]
[null,"７．１欄の（１）の６）の「該当箇所の有無」は、該当箇所がある場合には、「有」のチェックボックスに「✔」マーク"]
[null,null,"を入れ、「断熱性能」の欄に、「断熱補強の範囲」及び「断熱補強の熱抵抗値」を記入してください。"]
[null,"８．１欄の（２）の「暖房」、「冷房」、「換気」、「照明」、「給湯」については、住戸に設置する設備機器（「照明」"]
[null,null,"にあっては、非居室に白熱灯又はこれと同等以下の性能の照明設備を採用しない旨）とその効率（「照明」を除き、かつ、"]
[null,null,"効率に係る基準を用いる場合に限る。）を記載してください。設備機器が複数ある場合は最も効率の低い設備機器とその効率を記載してください。"]
[null,null,"「効率」の欄には、「暖房」では熱源機の熱効率又は暖房能力を消費電力で除した値を、「冷房」では冷房能力を消費電力で除した値を、"]
[null,null,"「換気」では比消費電力（全般換気設備の消費電力を設計風量で除した値をいう。以下同じ。）（熱交換換気設備を採用する場合にあっては、"]
[null,null,"比消費電力を有効換気量率で除した値）を、「給湯」ではモード熱効率、年間給湯保温効率又は年間給湯効率をそれぞれ記載してください。"]
[null,null,"ただし、浴室等、台所及び洗面所がない場合は、「給湯」の欄は記載する必要はありません。"]
[null,"９．１欄に書き表せない事項で特に記入すべき事項は、２欄に記入し、又は別紙に記入して添えてください。"]

{"sheet":"設内（標準）","index":17,"n_rows":41,"n_cols":39,"rows_kept":41,"cut":false,"hidden":false,"merged":[[40,18,40,20],[27,31,27,33],[18,30,18,33],[20,31,20,33],[38,15,38,27],[38,31,38,33],[18,23,18,26],[22,17,22,25],[31,31,31,33],[32,31,32,33],[33,31,33,33],[15,3,15,6],[17,3,17,6],[16,23,16,26],[10,3,10,6],[11,3,11,6],[13,3,13,6],[14,3,14,6],[1,0,1,6],[9,30,9,33],[2,0,2,6],[1,7,1,36],[4,0,5,2],[4,3,5,6],[2,7,2,36],[4,7,4,33],[8,31,8,33],[5,7,5,10],[8,3,8,6],[9,3,9,6],[18,3,18,6],[4,34,5,36],[5,30,5,33],[5,11,5,29],[14,24,14,26],[15,23,15,26],[11,30,11,33],[13,30,13,33],[14,30,14,33],[15,30,15,33],[10,30,10,33],[17,30,17,33],[17,23,17,26],[13,19,13,21],[14,15,14,17],[12,16,12,27]]}
["設計内容説明書（標準入力法）",null,null,null,null,null,null,null,null,null,null,null,null,null,null,null,null,null,null,null,null,null,null,null,null,null,null,null,null,null,null,null,null,null,null,null,{"$f":"IF(AM1=1,\"\",\"モデル建物法の場合、提出不要です\")","v":""},null,{"$f":"IF('4面①（非住宅） '!AR23=TRUE,1,\"\")","v":1}]
["建築物の名称",null,null,null,null,null,null,{"$f":"IF(AM1=1,IF(質疑等連絡票!H5=\"\",\"質疑連絡票に記載がありません\",質疑等連絡票!H5),\"\")","v":"質疑連絡票に記載がありません"}]
["設計者等氏名",null,null,null,null,null,null,{"$f":"IF(AM1=1,計画書!U17,\"\")","v":"２面を記入して下さい"}]
["【基本事項】"]
["確認\n事項",null,null,"確認\n項目",null,null,null,"設計内容説明欄",null,null,null,null,null,null,null,null,null,null,null,null,null,null,null,null,null,null,null,null,null,null,null,null,null,null,"設　計\n内　容\n確認欄"]
[null,null,null,null,null,null,null,"項目",null,null,null,"設計内容",null,null,null,null,null,null,null,null,null,null,null,null,null,null,null,null,null,null,"記載図書"]
["建物の",null,null,"建築物に",null,null,null,"用途",null,null,null,null,"非住宅建築物",null,null,null,null,null,null,null,null,null,"非住宅複合建築物",null,null,null,null,null,null,null,null,"概要書",null,null,"□","適"]
["概要",null,null,"関する事項",null,null,null,null,null,null,null,null,"非住宅・住宅複合建築物",null,null,null,null,null,null,null,null,null,null,null,null,null,null,null,null,null,null,"面積表",null,null,"□","否"]
[null,null,null,null,null,null,null,null,null,null,null,"・非住宅部分の具体的な用途"]
[null,null,null,null,null,null,null,null,null,null,null,null,null,"事務所等",null,null,null,null,null,"ホテル等",null,null,null,null,null,"病院等"]
[null,null,null,null,null,null,null,null,null,null,null,null,null,"百貨店等",null,null,null,null,null,"学校等",null,null,null,null,null,"飲食店等"]
[null,null,null,null,null,null,null,null,null,null,null,null,null,"集会所等",null,null,null,null,null,"工場等"]
[null,null,null,null,null,null,null,null,null,null,null,null,null,"その他（",null,null,null,null,null,null,null,null,null,null,null,null,null,null,"）"]
[null,null,null,null,null,null,null,"地域区分",null,null,null,"・建設地の地域区分",null,null,null,null,null,null,"（",{"$f":"IF(AM1=1,IFERROR('３面'!L29,\"\"),\"\")","v":0},null,null,"）","地域"]
[null,null,null,null,null,null,null,"階数",null,null,null,"・地上",null,null,"（",{"$f":"IF(AM1=1,'３面'!N17,\"\")","v":0},null,null,"）","階",null,"地下",null,"（",{"$f":"IF(AM1=1,'３面'!X17,\"\")","v":0},null,null,"）","階"]
[null,null,null,null,null,null,null,"面積",null,null,null,"・延べ面積",null,null,null,null,null,null,null,null,null,null,"（",{"$f":"IF(AM1=1,IFERROR('３面'!J14,\"\"),\"\")","v":0},null,null,null,"）","m2"]
[null,null,null,null,null,null,null,null,null,null,null,"・住宅部分の面積",null,null,null,null,null,null,null,null,null,null,"（",null,null,null,null,"）","m2"]
[null,null,null,null,null,null,null,null,null,null,null,"・高い開放性を有する部分の面積",null,null,null,null,null,null,null,null,null,null,"（",null,null,null,null,"）","m2"]
[null,null,null,null,null,null,null,null,null,null,null,"・計算対象部分の床面積",null,null,null,null,null,null,null,null,null,null,"（",null,null,null,null,"）","m2"]
[null,null,null,"計算方法に",null,null,null,"申請する",null,null,null,"・申請に用いる評価手法",null,null,null,null,null,null,null,null,null,null,null,null,null,null,null,null,null,null,"■","出力ｼｰﾄ",null,null,"□","適"]
[null,null,null,"関する事項",null,null,null,"評価手法",null,null,null,null,null,"標準入力法",null,null,null,null,null,null,null,null,null,null,null,null,null,null,null,null,null,null,null,null,"□","否"]
[null,null,null,null,null,null,null,null,null,null,null,null,null,"主要室入力法"]
[null,null,null,null,null,null,null,null,null,null,null,null,null,"その他",null,null,"（",null,null,null,null,null,null,null,null,null,"）"]
["外皮の",null,null,"外壁の性能",null,null,null,"計算手法等",null,null,null,null,"断熱種別等による入力",null,null,null,null,null,null,null,null,null,null,null,null,null,null,null,null,null,null,"仕様書",null,null,"□","適"]
["概要",null,null,null,null,null,null,null,null,null,null,null,"断熱材の性能及び厚さによる入力",null,null,null,null,null,null,null,null,null,null,null,null,null,null,null,null,null,null,"計算書",null,null,"□","否"]
[null,null,null,null,null,null,null,null,null,null,null,null,"層構成に応じた計算"]
[null,null,null,"窓の性能",null,null,null,"計算手法等",null,null,null,null,"建具・ガラス種別による入力",null,null,null,null,null,null,null,null,null,null,null,null,null,null,null,null,null,null,"仕様書",null,null,"□","適"]
[null,null,null,null,null,null,null,null,null,null,null,null,"建具種別とガラス性能値による入力",null,null,null,null,null,null,null,null,null,null,null,null,null,null,null,null,null,null,null,null,null,"□","否"]
[null,null,null,null,null,null,null,null,null,null,null,null,"窓の性能値による入力"]
["設備の",null,null,"設備の仕様",null,null,null,"対象の有無",null,null,null,"・計算対象空調設備の有無",null,null,null,null,null,null,null,null,null,null,"有り",null,null,null,null,"無し",null,null,"■","出力ｼｰﾄ",null,null,"□","適"]
["概要",null,null,null,null,null,null,null,null,null,null,"・計算対象換気設備の有無",null,null,null,null,null,null,null,null,null,null,"有り",null,null,null,null,"無し",null,null,null,"機器表",null,null,"□","否"]
[null,null,null,null,null,null,null,null,null,null,null,"・計算対象照明設備の有無",null,null,null,null,null,null,null,null,null,null,"有り",null,null,null,null,"無し"]
[null,null,null,null,null,null,null,null,null,null,null,"・計算対象給湯設備の有無",null,null,null,null,null,null,null,null,null,null,"有り",null,null,null,null,"無し"]
[null,null,null,null,null,null,null,null,null,null,null,"・計算対象昇降機の有無",null,null,null,null,null,null,null,null,null,null,"有り",null,null,null,null,"無し"]
[null,null,null,null,null,null,null,null,null,null,null,"・太陽光発電の有無",null,null,null,null,null,null,null,null,null,null,"有り",null,null,null,null,"無し"]
[null,null,null,null,null,null,null,null,null,null,null,null,null,"太陽光発電有りの場合、全量自家消費とする"]
[null,null,null,null,null,null,null,null,null,null,null,null,null,"太陽光発電有りの場合、全量売電を行わない"]
["その他",null,null,null,null,null,null,"任意評定等",null,null,null,"・任意評定等の活用の有無",null,null,null,null,null,null,null,null,null,null,"有り",null,null,null,null,"無し",null,null,"■","評定書",null,null,"□","適"]
[null,null,null,null,null,null,null,"の活用",null,null,null,null,"内容（",null,null,null,null,null,null,null,null,null,null,null,null,null,null,null,"）",null,null,null,null,null,"□","否"]
["計算の結果",null,null,null,null,null,null,"一次エネ",null,null,null,"・一次エネ基準への適否",null,null,null,null,null,null,null,null,null,null,null,null,null,null,null,null,null,null,"■","出力ｼｰﾄ",null,null,"□","適"]
[null,null,null,null,null,null,null,null,null,null,null,null,null,"適合（ＢＥＩ：",null,null,null,null,null,null,null,"）",null,null,null,"不適合",null,null,null,null,null,null,null,null,"□","否"]

{"sheet":"設内（モデル）","index":18,"n_rows":63,"n_cols":39,"rows_kept":63,"cut":false,"hidden":false,"merged":[[43,34,44,36],[43,7,44,33],[52,10,52,12],[52,16,52,31],[16,23,16,26],[17,23,17,26],[18,23,18,26],[19,23,19,26],[48,16,48,31],[49,10,49,12],[49,16,49,31],[50,10,50,12],[50,16,50,31],[51,10,51,12],[51,16,51,31],[43,0,44,2],[43,3,44,6],[10,3,10,6],[0,0,0,36],[2,0,2,6],[2,7,2,36],[3,0,3,6],[3,7,3,36],[5,0,6,2],[5,3,6,6],[5,7,5,33],[5,34,6,36],[6,7,6,10],[6,11,6,29],[6,30,6,33],[9,3,9,6],[9,31,9,33],[15,3,15,6],[15,15,15,17],[15,24,15,26],[11,3,11,6],[12,3,12,6],[14,3,14,6],[14,19,14,21],[13,3,13,6],[13,16,13,27],[53,17,53,23],[16,3,16,6],[18,3,18,6],[47,10,47,12],[46,9,46,13],[47,16,47,31],[46,15,46,32],[48,10,48,12],[39,18,39,20],[41,0,41,36],[21,31,21,33],[31,31,31,33],[32,31,32,33],[37,15,37,27],[37,31,37,33],[19,3,19,6]]}
[null,null,null,null,null,null,null,null,null,null,null,null,null,null,null,null,null,null,null,null,null,null,null,null,null,null,null,null,null,null,null,null,null,null,null,null,null,null,{"$f":"IF('4面①（非住宅） '!AR29=TRUE,1,\"\")","v":1}]
["設計内容説明書（モデル建物法）",null,null,null,null,null,null,null,null,null,null,null,null,null,null,null,null,null,null,null,null,null,null,null,null,null,null,null,null,null,null,null,null,null,null,null,{"$f":"IF(AM1=1,\"\",\"標準入力法の場合、提出不要です\")","v":""}]
["建築物の名称",null,null,null,null,null,null,{"$f":"IF(AM1=1,IF(質疑等連絡票!H5=\"\",\"質疑連絡票に記載がありません\",質疑等連絡票!H5),\"\")","v":"質疑連絡票に記載がありません"}]
["設計者等氏名",null,null,null,null,null,null,{"$f":"IF(AM1=1,計画書!U17,\"\")","v":"２面を記入して下さい"}]
["【基本事項】"]
["確認\n事項",null,null,"確認\n項目",null,null,null,"設計内容説明欄",null,null,null,null,null,null,null,null,null,null,null,null,null,null,null,null,null,null,null,null,null,null,null,null,null,null,"設　計\n内　容\n確認欄"]
[null,null,null,null,null,null,null,"項目",null,null,null,"設計内容",null,null,null,null,null,null,null,null,null,null,null,null,null,null,null,null,null,null,"記載図書"]
["建物の",null,null,"建築物に",null,null,null,"用途",null,null,null,null,"非住宅建築物",null,null,null,null,null,null,null,null,null,"非住宅複合建築物",null,null,null,null,null,null,null,null,"概要書",null,null,"□","適"]
["概要",null,null,"関する事項",null,null,null,null,null,null,null,null,"非住宅・住宅複合建築物",null,null,null,null,null,null,null,null,null,null,null,null,null,null,null,null,null,null,"面積表",null,null,"□","否"]
[null,null,null,null,null,null,null,null,null,null,null,"・非住宅部分の具体的な用途"]
[null,null,null,null,null,null,null,null,null,null,null,null,null,"事務所等",null,null,null,null,null,"ホテル等",null,null,null,null,null,"病院等"]
[null,null,null,null,null,null,null,null,null,null,null,null,null,"百貨店等",null,null,null,null,null,"学校等",null,null,null,null,null,"飲食店等"]
[null,null,null,null,null,null,null,null,null,null,null,null,null,"集会所等",null,null,null,null,null,"工場等"]
[null,null,null,null,null,null,null,null,null,null,null,null,null,"その他（",null,null,null,null,null,null,null,null,null,null,null,null,null,null,"）"]
[null,null,null,null,null,null,null,"地域区分",null,null,null,"・建設地の地域区分",null,null,null,null,null,null,"（",{"$f":"IF(AM1=1,IFERROR('３面'!L29,\"\"),\"\")","v":0},null,null,"）","地域"]
[null,null,null,null,null,null,null,"階数",null,null,null,"・地上",null,null,"（",{"$f":"IF(AM1=1,'３面'!N17,\"\")","v":0},null,null,"）","階",null,"地下",null,"（",{"$f":"IF(AM1=1,'３面'!X17,\"\")","v":0},null,null,"）","階"]
[null,null,null,null,null,null,null,"面積",null,null,null,"・延べ面積",null,null,null,null,null,null,null,null,null,null,"（",{"$f":"IF(AM1=1,IFERROR('３面'!J14,\"\"),\"\")","v":0},null,null,null,"）","m2"]
[null,null,null,null,null,null,null,null,null,null,null,"・住宅部分の面積",null,null,null,null,null,null,null,null,null,null,"（",null,null,null,null,"）","m2"]
[null,null,null,null,null,null,null,null,null,null,null,"・高い開放性を有する部分の面積",null,null,null,null,null,null,null,null,null,null,"（",null,null,null,null,"）","m2"]
[null,null,null,null,null,null,null,null,null,null,null,"・計算対象部分の床面積",null,null,null,null,null,null,null,null,null,null,"（",null,null,null,null,"）","m2"]
[null,null,null,"計算方法に",null,null,null,"選択した",null,null,null,"・計算に用いたモデル建物の種別",null,null,null,null,null,null,null,null,null,null,null,null,null,null,null,null,null,null,"■","出力ｼｰﾄ",null,null,"□","適"]
[null,null,null,"関する事項",null,null,null,"モデル建物",null,null,null,null,"■","第二面による",null,null,null,null,null,null,null,null,null,null,null,null,null,null,null,null,null,null,null,null,"□","否"]
["外皮の",null,null,"外壁の性能",null,null,null,"計算手法等",null,null,null,null,"断熱種別等による入力",null,null,null,null,null,null,null,null,null,null,null,null,null,null,null,null,null,null,"仕様書",null,null,"□","適"]
["概要",null,null,null,null,null,null,null,null,null,null,null,"断熱材の性能及び厚さによる入力",null,null,null,null,null,null,null,null,null,null,null,null,null,null,null,null,null,null,"集計表",null,null,"□","否"]
[null,null,null,null,null,null,null,null,null,null,null,null,"層構成に応じた計算"]
[null,null,null,"窓の性能",null,null,null,"計算手法等",null,null,null,null,"建具・ガラス種別による入力",null,null,null,null,null,null,null,null,null,null,null,null,null,null,null,null,null,null,"仕様書",null,null,"□","適"]
[null,null,null,null,null,null,null,null,null,null,null,null,"建具種別とガラス性能値による入力",null,null,null,null,null,null,null,null,null,null,null,null,null,null,null,null,null,null,"集計表",null,null,"□","否"]
[null,null,null,null,null,null,null,null,null,null,null,null,"窓の性能値による入力"]
["設備の",null,null,"設備の仕様",null,null,null,"対象の有無",null,null,null,"・計算対象空調設備の有無",null,null,null,null,null,null,null,null,null,null,"有り",null,null,null,null,"無し",null,null,"■","出力ｼｰﾄ",null,null,"□","適"]
["概要",null,null,null,null,null,null,null,null,null,null,"・計算対象換気設備の有無",null,null,null,null,null,null,null,null,null,null,"有り",null,null,null,null,"無し",null,null,null,"集計表",null,null,"□","否"]
[null,null,null,null,null,null,null,null,null,null,null,"・計算対象照明設備の有無",null,null,null,null,null,null,null,null,null,null,"有り",null,null,null,null,"無し",null,null,null,"機器表"]
[null,null,null,null,null,null,null,null,null,null,null,"・計算対象給湯設備の有無",null,null,null,null,null,null,null,null,null,null,"有り",null,null,null,null,"無し"]
[null,null,null,null,null,null,null,null,null,null,null,"・計算対象昇降機の有無",null,null,null,null,null,null,null,null,null,null,"有り",null,null,null,null,"無し"]
[null,null,null,null,null,null,null,null,null,null,null,"・太陽光発電の有無",null,null,null,null,null,null,null,null,null,null,"有り",null,null,null,null,"無し"]
[null,null,null,null,null,null,null,null,null,null,null,null,null,"太陽光発電有りの場合、全量自家消費とする"]
[null,null,null,null,null,null,null,null,null,null,null,null,null,"太陽光発電有りの場合、全量売電を行わない"]
["その他",null,null,null,null,null,null,"任意評定等",null,null,null,"・任意評定等の活用の有無",null,null,null,null,null,null,null,null,null,null,"有り",null,null,null,null,"無し",null,null,"■","評定書",null,null,"□","適"]
[null,null,null,null,null,null,null,"の活用",null,null,null,null,"内容（",null,null,null,null,null,null,null,null,null,null,null,null,null,null,null,"）",null,null,null,null,null,"□","否"]
["計算の結果",null,null,null,null,null,null,"一次エネ",null,null,null,"・一次エネ基準への適否",null,null,null,null,null,null,null,null,null,null,null,null,null,null,null,null,null,null,"■","出力ｼｰﾄ",null,null,"□","適"]
[null,null,null,null,null,null,null,null,null,null,null,null,null,"適合（ＢＥＩ：",null,null,null,null,null,null,null,"）",null,null,null,"不適合",null,null,null,null,null,null,null,null,"□","否"]
[]
["（第二面）"]
["【適用したモデル建物】"]
["確認\n事項",null,null,"確認\n項目",null,null,null,"設計内容説明欄",null,null,null,null,null,null,null,null,null,null,null,null,null,null,null,null,null,null,null,null,null,null,null,null,null,null,"設　計\n内　容\n確認欄"]
[]
["用途等に",null,null,"用途区分",null,null,null,"・建築基準法施行規則別表に定める用途区分コード",null,null,null,null,null,null,null,null,null,null,null,null,null,null,null,null,null,null,null,null,null,null,null,null,null,null,"□","適"]
["関する",null,null,"コード",null,null,null,null,null,"用途区分コード",null,null,null,null,null,"規則別紙で記載のある用途の名称",null,null,null,null,null,null,null,null,null,null,null,null,null,null,null,null,null,null,"□","否"]
["事項",null,null,null,null,null,null,null,"・","（",null,null,null,"）",null,"（",null,null,null,null,null,null,null,null,null,null,null,null,null,null,null,null,"）"]
[null,null,null,null,null,null,null,null,"・","（",null,null,null,"）",null,"（",null,null,null,null,null,null,null,null,null,null,null,null,null,null,null,null,"）"]
[null,null,null,null,null,null,null,null,"・","（",null,null,null,"）",null,"（",null,null,null,null,null,null,null,null,null,null,null,null,null,null,null,null,"）"]
[null,null,null,null,null,null,null,null,"・","（",null,null,null,"）",null,"（",null,null,null,null,null,null,null,null,null,null,null,null,null,null,null,null,"）"]
[null,null,null,null,null,null,null,null,"・","（",null,null,null,"）",null,"（",null,null,null,null,null,null,null,null,null,null,null,null,null,null,null,null,"）"]
[null,null,null,null,null,null,null,null,"・","（",null,null,null,"）",null,"（",null,null,null,null,null,null,null,null,null,null,null,null,null,null,null,null,"）"]
[null,null,null,"用いた",null,null,null,null,"事務所モデル",null,null,null,null,null,null,null,null,"ビジネスホテルモデル",null,null,null,null,null,null,null,"シティホテルモデル",null,null,null,null,null,null,null,null,"□","適"]
[null,null,null,"モデル建物",null,null,null,null,"総合病院モデル",null,null,null,null,null,null,null,null,"福祉施設モデル",null,null,null,null,null,null,null,"クリニックモデル",null,null,null,null,null,null,null,null,"□","否"]
[null,null,null,null,null,null,null,null,"学校モデル",null,null,null,null,null,null,null,null,"幼稚園モデル",null,null,null,null,null,null,null,"大学モデル"]
[null,null,null,null,null,null,null,null,"講堂モデル",null,null,null,null,null,null,null,null,"大規模物販モデル",null,null,null,null,null,null,null,"小規模物販モデル"]
[null,null,null,null,null,null,null,null,"飲食店モデル",null,null,null,null,null,null,null,null,"集会所モデル",null,null,null,null,null,null,null,"工場モデル"]
[null,null,null,null,null,null,null,"・集会所等にあっては、以下の室用途を併せて選択"]
[null,null,null,null,null,null,null,null,null,"アスレチック場",null,null,null,null,null,null,null,null,"体育館",null,null,null,null,null,null,null,"浴場施設"]
[null,null,null,null,null,null,null,null,null,"映画館",null,null,null,null,null,null,null,null,"図書館",null,null,null,null,null,null,null,"博物館"]
[null,null,null,null,null,null,null,null,null,"劇場",null,null,null,null,null,null,null,null,"カラオケボックス",null,null,null,null,null,null,null,"ボーリング場"]
[null,null,null,null,null,null,null,null,null,"ぱちんこ屋",null,null,null,null,null,null,null,null,"競馬場又は競輪場",null,null,null,null,null,null,null,"社寺"]

{"sheet":"設内（住宅用）","index":19,"n_rows":47,"n_cols":42,"rows_kept":47,"cut":false,"hidden":false,"merged":[[5,0,5,15],[5,16,5,42],[7,0,8,1],[7,2,8,5],[7,6,7,38],[7,39,8,42],[8,6,8,10],[8,11,8,34],[8,35,8,38],[9,0,21,1],[9,2,14,5],[9,6,10,10],[12,6,13,10],[15,2,21,5],[15,6,15,10],[16,6,18,10],[19,6,21,10],[23,0,24,1],[23,2,24,4],[23,5,23,38],[23,39,24,42],[24,5,24,10],[24,11,24,34],[24,35,24,38],[44,0,46,10],[25,0,26,4],[27,0,29,4],[30,0,43,1],[30,2,43,4],[40,5,41,10],[42,5,43,10]]}
[]
["設計内容説明書（住宅用）"]
[]
["住宅又は、複合建築物の住宅部分"]
["（",null,"一戸建て住宅　・",null,null,null,null,null,"共同住宅等、複合建築物の住戸",null,null,null,null,null,null,null,null,null,null,"（",null,"別表に記載）",null,null,null,"）"]
["住戸番号　※共同住宅等の場合以外は記入不要"]
["【外皮に関する事項】"]
["確認事項",null,"確認項目",null,null,null,"設計内容（現況）説明欄",null,null,null,null,null,null,null,null,null,null,null,null,null,null,null,null,null,null,null,null,null,null,null,null,null,null,null,null,null,null,null,null,"設計内容\n確認欄"]
[null,null,null,null,null,null,"項目",null,null,null,null,"設計内容（現況）",null,null,null,null,null,null,null,null,null,null,null,null,null,null,null,null,null,null,null,null,null,null,null,"記載図書欄"]
["躯体の外皮性能等",null,"性能基準等",null,null,null,"外皮平均熱貫流率[W/m2K]",null,null,null,null,"外皮平均熱貫流率（UA）",null,null,null,null,null,null,null,null,null,null,null,null,null,null,null,null,null,null,null,null,null,null,null,null,"計算書"]
[null,null,null,null,null,null,null,null,null,null,null,"設計値：エネルギー消費性能計算プログラムの出力票による",null,null,null,null,null,null,null,null,null,null,null,null,null,null,null,null,null,null,null,null,null,null,null,null,"仕様書"]
[null,null,null,null,null,null,null,null,null,null,null,"基準値：1・2地域0.46以下、3地域0.56以下、4地域0.75以下、5～7地域0.87以下",null,null,null,null,null,null,null,null,null,null,null,null,null,null,null,null,null,null,null,null,null,null,null,null,"平面図"]
[null,null,null,null,null,null,"外皮平均日射熱取得率",null,null,null,null,"冷房期の平均日射熱取得率の計算値（ηAC）",null,null,null,null,null,null,null,null,null,null,null,null,null,null,null,null,null,null,null,null,null,null,null,null,"立面図"]
[null,null,null,null,null,null,null,null,null,null,null,"設計値：エネルギー消費性能計算プログラムの出力票による",null,null,null,null,null,null,null,null,null,null,null,null,null,null,null,null,null,null,null,null,null,null,null,null,"建具表",null,null,null,null,"適"]
[null,null,null,null,null,null,null,null,null,null,null,"基準値：5地域3.0以下、6地域2.8以下、7地域2.7以下、8地域6.7以下"]
[null,null,"仕様基準",null,null,null,"基準の選択",null,null,null,null,null,"仕様基準",null,null,null,null,null,null,null,"誘導仕様基準"]
[null,null,null,null,null,null,"躯体の断熱性能等",null,null,null,null,null,"熱貫流率の基準に適合",null,null,null,null,null,null,null,null,null,null,null,null,null,null,null,null,null,null,null,null,null,null,null,"仕様表"]
[null,null,null,null,null,null,null,null,null,null,null,null,"断熱材の熱抵抗値の基準に適合",null,null,null,null,null,null,null,null,null,null,null,null,null,null,null,null,null,null,null,null,null,null,null,"平面図"]
[null,null,null,null,null,null,null,null,null,null,null,null,"構造熱橋部の基準に適合（鉄筋コンクリート造等の場合）"]
[null,null,null,null,null,null,"開口部の断熱性能等",null,null,null,null,null,"開口部の熱貫流率と日射遮蔽対策の基準に適合",null,null,null,null,null,null,null,null,null,null,null,null,null,null,null,null,null,null,null,null,null,null,null,"立面図"]
[null,null,null,null,null,null,null,null,null,null,null,null,"緩和措置あり",null,null,null,null,null,null,null,null,null,null,null,null,null,null,null,null,null,null,null,null,null,null,null,"建具表"]
[null,null,null,null,null,null,null,null,null,null,null,null,null,"窓の断熱（2％緩和）",null,null,null,null,null,null,null,"窓の日射（4％緩和）"]
["【一次エネルギー消費量等に関する事項】"]
["確認事項",null,"確認\n項目",null,null,"設計内容説明欄（現況）",null,null,null,null,null,null,null,null,null,null,null,null,null,null,null,null,null,null,null,null,null,null,null,null,null,null,null,null,null,null,null,null,null,"設計内容\n確認欄"]
[null,null,null,null,null,"項目",null,null,null,null,null,"設計内容（現況）",null,null,null,null,null,null,null,null,null,null,null,null,null,null,null,null,null,null,null,null,null,null,null,"記載図書欄"]
["基本事項",null,null,null,null,"計算対象床面積",null,null,null,null,null,null,"エネルギー消費性能計算プログラムの出力票による",null,null,null,null,null,null,null,null,null,null,null,null,null,null,null,null,null,null,null,null,null,null,null,"平面図"]
[null,null,null,null,null,null,null,null,null,null,null,null,"仕様基準・誘導仕様基準を採用",null,null,null,null,null,null,null,null,null,null,null,null,null,null,null,null,null,null,null,null,null,null,null,"求積図"]
["一次エネルギー\n消費量",null,null,null,null,"計算結果等",null,null,null,null,null,null,"エネルギー消費性能計算プログラムの出力票による",null,null,null,null,null,null,null,null,null,null,null,null,null,null,null,null,null,null,null,null,null,null,null,"計算書",null,null,null,null,"適"]
[null,null,null,null,null,null,null,null,null,null,null,null,"一次エネルギー消費量に関する仕様基準（住宅部分）",null,null,null,null,null,null,null,null,null,null,null,null,null,null,null,null,null,null,null,null,null,null,null,"仕様書"]
[null,null,null,null,null,null,null,null,null,null,null,null,"誘導仕様基準（住宅部分）"]
["設備の概要　 ",null,"設備機器に係る概要",null,null,"暖房方式",null,null,null,null,null,null,"エネルギー消費性能計算プログラムの出力票による",null,null,null,null,null,null,null,null,null,null,null,null,null,null,null,null,null,null,null,null,null,null,null,"仕上表"]
[null,null,null,null,null,null,null,null,null,null,null,null,"仕様基準・誘導仕様基準に適合",null,null,null,null,null,null,null,null,null,null,null,null,null,null,null,null,null,null,null,null,null,null,null,"建具表"]
[null,null,null,null,null,"冷房方式",null,null,null,null,null,null,"エネルギー消費性能計算プログラムの出力票による",null,null,null,null,null,null,null,null,null,null,null,null,null,null,null,null,null,null,null,null,null,null,null,"矩計図"]
[null,null,null,null,null,null,null,null,null,null,null,null,"仕様基準・誘導仕様基準に適合",null,null,null,null,null,null,null,null,null,null,null,null,null,null,null,null,null,null,null,null,null,null,null,"平面図",null,null,null,null,"適"]
[null,null,null,null,null,"換気設備方式",null,null,null,null,null,null,"エネルギー消費性能計算プログラムの出力票による",null,null,null,null,null,null,null,null,null,null,null,null,null,null,null,null,null,null,null,null,null,null,null,"機器表"]
[null,null,null,null,null,null,null,null,null,null,null,null,"仕様基準・誘導仕様基準に適合",null,null,null,null,null,null,null,null,null,null,null,null,null,null,null,null,null,null,null,null,null,null,null,"系統図"]
[null,null,null,null,null,"給湯設備",null,null,null,null,null,null,"エネルギー消費性能計算プログラムの出力票による"]
[null,null,null,null,null,null,null,null,null,null,null,null,"仕様基準・誘導仕様基準に適合"]
[null,null,null,null,null,"照明設備",null,null,null,null,null,null,"エネルギー消費性能計算プログラムの出力票による"]
[null,null,null,null,null,null,null,null,null,null,null,null,"仕様基準・誘導仕様基準に適合"]
[null,null,null,null,null,"太陽光発電の使用について",null,null,null,null,null,null,"エネルギー消費性能計算プログラムの出力票による"]
[]
[null,null,null,null,null,"ｺｰｼﾞｪﾈﾚｰｼｮﾝの使用について",null,null,null,null,null,null,"エネルギー消費性能計算プログラムの出力票による"]
[]
["共用部",null,null,null,null,null,null,null,null,null,null,null,"住宅の共用部分なし"]
[null,null,null,null,null,null,null,null,null,null,null,null,"住宅の共用部分の計算を省略"]
[null,null,null,null,null,null,null,null,null,null,null,null,"住宅の共用部分を計算の対象とする"]

{"sheet":"委任状（任意）","index":20,"n_rows":48,"n_cols":43,"rows_kept":48,"cut":false,"hidden":false,"merged":[[1,0,1,44],[26,1,26,41],[4,29,4,31],[40,6,41,39],[29,9,30,39],[4,32,4,33],[4,36,4,37],[9,18,10,42],[21,18,22,42],[15,18,16,42],[4,40,4,41],[12,18,13,42],[18,18,19,42],[24,18,25,42],[33,2,33,40],[36,6,37,39]]}
[]
["委　　　　任　　　　状"]
[]
[]
[null,null,null,null,null,null,null,null,null,null,null,null,null,null,null,null,null,null,null,null,null,null,null,null,null,null,null,null,null,"令和",null,null,null,null,"年",null,null,null,"月",null,null,null,"日"]
[]
[]
[null,"一般財団法人ベターリビング 殿"]
[null,null,null,null,null,null,null,null,null,null,null,null,null,null,null,null,null,null,"申請者の住所又は主たる事務所の所在地"]
[null,null,null,null,null,null,null,null,null,null,null,null,null,null,null,null,null,null,{"$f":"IF('２面'!L8=0,\"申請書２面の記載がありません\",'２面'!L8)","v":"申請書２面の記載がありません"}]
[]
[null,null,null,null,null,null,null,null,null,null,null,null,null,null,null,null,null,null,"申請者の氏名又は名称"]
[null,null,null,null,null,null,null,null,null,null,null,null,null,null,null,null,null,null,{"$f":"IF('２面'!L6=0,\"申請書２面の記載がありません\",'２面'!L6)","v":"申請書２面の記載がありません"}]
[]
[null,null,null,null,null,null,null,null,null,null,null,null,null,null,null,null,null,null,{"$f":"IF('[5]２面'!AS6=1,\"申請者の住所又は主たる事務所の所在地\",\"\")","v":""}]
[null,null,null,null,null,null,null,null,null,null,null,null,null,null,null,null,null,null,{"$f":"IF('２面'!AS6=1,その他の申請者!L8,\"\")","v":""}]
[]
[null,null,null,null,null,null,null,null,null,null,null,null,null,null,null,null,null,null,{"$f":"IF('２面'!AS6=1,\"申請者の氏名又は名称\",\"\")","v":""}]
[null,null,null,null,null,null,null,null,null,null,null,null,null,null,null,null,null,null,{"$f":"IF('２面'!AS6=1,'２面'!AS7,\"\")","v":""}]
[]
[null,null,null,null,null,null,null,null,null,null,null,null,null,null,null,null,null,null,{"$f":"IF('２面'!AT6=1,\"申請者の住所又は主たる事務所の所在地\",\"\")","v":""}]
[null,null,null,null,null,null,null,null,null,null,null,null,null,null,null,null,null,null,{"$f":"IF('２面'!AT6=1,その他の申請者!L14,\"\")","v":""}]
[]
[null,null,null,null,null,null,null,null,null,null,null,null,null,null,null,null,null,null,{"$f":"IF('２面'!AT6=1,\"申請者の氏名又は名称\",\"\")","v":""}]
[null,null,null,null,null,null,null,null,null,null,null,null,null,null,null,null,null,null,{"$f":"IF('２面'!AT6=1,'２面'!AT7,\"\")","v":""}]
[]
[null,"　私は次の代理者を代理人と定め、下記建築物等のエネルギー消費性能確保計画に係る\n建築物省エネ法に基づく適合性判定の手続きに関する一切の権限を委任します。"]
[]
[]
[null,null,null,null,null,null,null,null,null,{"$f":"IF('２面'!L12=0,\"申請書２面の記載がありません\",'２面'!L12&\" \"&'２面'!L11)","v":"申請書２面の記載がありません"}]
[null,null,null,null,"代理人："]
[]
[]
[null,null,"記"]
[]
[null,null,null,null,"１．建築物等の名称"]
[null,null,null,null,null,null,{"$f":"IF(質疑等連絡票!H5=\"\",\"質疑連絡票に記載がありません\",質疑等連絡票!H5)","v":"質疑連絡票に記載がありません"}]
[]
[]
[null,null,null,null,"２.建築物等の所在地"]
[null,null,null,null,null,null,{"$f":"IF('３面'!J5=0,\"申請書3面に記載がありません\",'３面'!J5)","v":"申請書3面に記載がありません"}]
[]
[]
[null,null,null,null,"３.委任の区分"]
[]
[null,null,null,null,null,null,null,null,"省エネ計画書の提出"]
[]
[null,null,null,null,null,null,null,null,"省エネ計画書の変更"]

{"sheet":"変更計画書","index":21,"n_rows":42,"n_cols":36,"rows_kept":42,"cut":false,"hidden":false,"merged":[[14,20,14,32],[0,0,0,33],[1,0,1,33],[2,0,2,33],[4,28,4,29],[4,31,4,32],[4,25,4,26],[6,0,6,13],[9,20,9,32],[10,19,10,32],[11,20,11,32],[12,20,12,32],[13,19,13,32],[22,14,22,21],[15,20,15,32],[17,1,19,32],[31,1,31,10],[31,11,31,20],[31,21,31,32],[40,1,40,33],[41,1,41,33],[23,14,23,15],[23,17,23,18],[23,20,23,21],[26,3,28,31],[39,0,39,33],[33,2,33,8]]}
["様式第二（第四条第一項関係）（日本産業規格Ａ列４番）"]
["（第一面）"]
["変更計画書"]
[]
[null,null,null,null,null,null,null,null,null,null,null,null,null,null,null,null,null,null,null,null,null,null,null,null,{"$f":"計画書!Y6","v":"令和"},null,null,"年",null,null,"月",null,null,"日"]
[]
["一般財団法人ベターリビング　殿"]
[]
[null,null,null,null,null,null,null,null,null,null,null,null,null,null,null,null,null,null,null,"提出者の住所又は主たる事務所の所在地"]
[null,null,null,null,null,null,null,null,null,null,null,null,null,null,null,null,null,null,null,null,{"$f":"IF(計画書!U11=0,\"計画書を記入してください\",計画書!U11)","v":"計画書を記入してください"}]
[null,null,null,null,null,null,null,null,null,null,null,null,null,null,null,null,null,null,null,"提出者の氏名又は名称\n代表者の氏名"]
[null,null,null,null,null,null,null,null,null,null,null,null,null,null,null,null,null,null,null,null,{"$f":"IF(計画書!U13=0,\"計画書を記入してください\",計画書!U13)","v":"計画書を記入してください"}]
[null,null,null,null,null,null,null,null,null,null,null,null,null,null,null,null,null,null,null,null,{"$f":"IF(計画書!U14=0,\"計画書を記入してください\",計画書!U14)","v":"計画書を記入してください"}]
[null,null,null,null,null,null,null,null,null,null,null,null,null,null,null,null,null,null,null,"設計者氏名"]
[null,null,null,null,null,null,null,null,null,null,null,null,null,null,null,null,null,null,null,null,{"$f":"計画書!U16","v":"２面を記入して下さい"}]
[null,null,null,null,null,null,null,null,null,null,null,null,null,null,null,null,null,null,null,null,{"$f":"計画書!U17","v":"２面を記入して下さい"}]
[]
[null,"　建築物のエネルギー消費性能の向上等に関する法律第11条第２項（同法第14条第２項において読み替えて適用される場合を含む。）の規定により、変更後の建築物エネルギー消費性能確保計画を提出します。この計画書及び添付図書に記載の事項は、事実に相違ありません。"]
[]
[]
[]
[null,null,"【計画を変更する建築物の直前の建築物エネルギー消費性能適合性判定】"]
[null,null,"【適合判定通知書番号】",null,null,null,null,null,null,null,null,null,null,"第",null,null,null,null,null,null,null,null,"号",null,null,null,null,null,null,null,null,null,null,null,"←","当初の適合性判定通知書の交付番号を入力して下さい。"]
[null,null,"【適合判定通知書交付年月日】",null,null,null,null,null,null,null,null,null,null,{"$f":"計画書!Y6","v":"令和"},null,null,"年",null,null,"月",null,null,"日",null,null,null,null,null,null,null,null,null,null,null,"←","当初の適合性判定通知書の交付年月日を入力して下さい。"]
[null,null,"【適合判定通知書交付者】",null,null,null,null,null,null,null,null,null,null,"一般財団法人　ベターリビング"]
[null,null,"【計画変更の概要】"]
[]
[]
[]
[]
[null,"（本欄には記入しないでください。）"]
[null,"受付欄",null,null,null,null,null,null,null,null,null,"適合判定通知書番号欄",null,null,null,null,null,null,null,null,null,"決裁欄"]
[null,null,null,null,"年",null,"月",null,"日",null,null,null,null,null,"年",null,"月",null,"日"]
[null,null,"第 CBL-SH-",null,null,null,null,null,null,"号",null,null,"第",null,null,null,null,null,null,"号"]
[null,null,"係員氏名",null,null,null,null,null,null,null,null,null,"係員氏名"]
[]
[]
[]
[]
["（注意）"]
[null,"　１．第二面から第五面までとして別記様式第一の第二面から第五面までに記載すべき事項を記載した書類を添えてください。"]
[null,"　２．別記様式第一の（注意）に準じて記入してください。"]

{"sheet":"計画変更通知書","index":22,"n_rows":42,"n_cols":36,"rows_kept":42,"cut":false,"hidden":false,"merged":[[39,0,39,30],[40,0,40,30],[41,0,41,30],[34,2,34,8],[9,24,9,32],[11,28,11,29],[11,31,11,32],[28,3,30,31],[32,1,32,10],[32,11,32,20],[32,21,32,32],[17,20,17,32],[19,1,21,32],[25,14,25,15],[25,17,25,18],[25,20,25,21],[24,14,24,21],[14,20,14,32],[16,20,16,32],[0,0,0,33],[1,0,1,33],[2,0,2,33],[4,28,4,29],[4,31,4,32],[4,25,4,26],[11,25,11,26],[13,20,13,32],[6,0,6,14]]}
["様式第十二（第九条第一項関係）（日本産業規格Ａ列４番）"]
["（第一面）"]
["建築物のエネルギー消費性能の向上等に関する法律第12条第３項の規定による計画変更通知書"]
[]
[null,null,null,null,null,null,null,null,null,null,null,null,null,null,null,null,null,null,null,null,null,null,null,null,{"$f":"計画書!Y6","v":"令和"},null,null,"年",null,null,"月",null,null,"日",null,"申請年月日"]
[]
["一般財団法人ベターリビング　殿"]
[]
[]
[null,null,null,null,null,null,null,null,null,null,null,null,null,null,null,null,null,null,null,null,null,null,null,"第",null,null,null,null,null,null,null,null,null,"号","←","文書管理番号（ある場合のみ記入）"]
[]
[null,null,null,null,null,null,null,null,null,null,null,null,null,null,null,null,null,null,null,null,null,null,null,null,{"$f":"計画書!Y6","v":"令和"},null,null,"年",null,null,"月",null,null,"日","←","文書管理番号の発番日（ある場合のみ記入）"]
[]
[null,null,null,null,null,null,null,null,null,null,null,null,null,null,null,null,null,null,null,"通知者官職"]
[]
[]
[null,null,null,null,null,null,null,null,null,null,null,null,null,null,null,null,null,null,null,"設計者氏名",{"$f":"計画書!U16","v":"２面を記入して下さい"}]
[null,null,null,null,null,null,null,null,null,null,null,null,null,null,null,null,null,null,null,null,{"$f":"計画書!U17","v":"２面を記入して下さい"}]
[]
[null,"　建築物のエネルギー消費性能の向上等に関する法律第12条第３項（同法第14条第２項において読み替えて適用される場合を含む。）の規定により、建築物エネルギー消費性能確保計画を通知します。"]
[]
[]
[]
[null,null,"【計画を変更する建築物の直前の建築物エネルギー消費性能適合性判定】"]
[null,null,"【適合判定通知書番号】",null,null,null,null,null,null,null,null,null,null,"第",null,null,null,null,null,null,null,null,"号",null,null,null,null,null,null,null,null,null,null,null,"←","当初の適合性判定通知書の交付番号を入力して下さい。"]
[null,null,"【適合判定通知書交付年月日】",null,null,null,null,null,null,null,null,null,null,{"$f":"計画書!Y6","v":"令和"},null,null,"年",null,null,"月",null,null,"日",null,null,null,null,null,null,null,null,null,null,null,"←","当初の適合性判定通知書の交付年月日を入力して下さい。"]
[null,null,"【適合判定通知書交付者】",null,null,null,null,null,null,null,null,null,null,"一般財団法人　ベターリビング"]
[null,null,"【計画変更の概要】"]
[]
[]
[]
[null,"（本欄には記入しないでください。）"]
[null,"受付欄",null,null,null,null,null,null,null,null,null,"適合判定通知書番号欄",null,null,null,null,null,null,null,null,null,"決裁欄"]
[null,null,null,null,"年",null,"月",null,"日",null,null,null,null,null,"年",null,"月",null,"日"]
[null,null,"第 CBL-SH-",null,null,null,null,null,null,"号",null,null,"第",null,null,null,null,null,null,"号"]
[null,null,"係員氏名",null,null,null,null,null,null,null,null,null,"係員氏名"]
[]
[]
["（注意）"]
["　１.第二面から第五面までとして別記様式第一の第二面から第五面までに記載すべき事項を記載"]
["　　した書類を添えてください。"]
["　２.別記様式第一の（注意）に準じて記入してください。"]